Workbook

Sheet How to use
A1: How to use the heat recovery calculator
A3: Step1: | B3: Insert nominal power and operating conditions (operating pressure, load) of the Ultima
A5: Step 2: | B5: Insert the ambient temperature or - alternatively - insert cooling water inlet temperature into the package
B6: Limits: | C6: Max. Ambient Temperature Package @Max. Inlet Temperature Customer Side > 40°C is 40°C
C7: Max. Ambient Temperature Package @Max. Inlet Temperature Customer Side <= 40°C is 45°C
C8: Max. Temperature Package IN (R8) is 60°C
C9: Min. Temperature Package IN (R8) is 30°C
A10: Step 3: | B10: Insert the inlet temperature and the requested outlet temperature of the customer´s usable water
B11: Limits: | C11: Max. HRC Outlet Temperature Customer Side is 85°C
C12: Max. Temperature Difference Customer Side is 45K
C13: Max. Inlet Temperature Customer Side is 45°C (higher temperatures on request)
A14: Step 4: | B14: Insert the specific heat capacity of the customer´s usable water
B15: Note: the spec. Heat capacity of pure water is 4,2 kJ/kgK. For a water/glycol mixture of 70/30, it is 3,9 kJ/kgK
A17: Step 5: | B17: You can now read out the recoverable heat, volume flow and pressure loss of the customer´s usable water as well as the compressed air outlet temperature
A19: Step 6: | B19: Insert full load hours per year, current fuel for heat generation, current boiler efficiency and fuel price
A21: Step 7: | B21: You can now read out the annual savings of energy, CO2 emissions and money

Sheet Calculator
G2: Cooling Side | K2: Compressor Side
F4: Air-Water Cooler
H5: =IF(C13>0,C13,IF(C10>25,C10+5,30)) -> 35
H6: Temperature package in (R8) [°C] | M6: Nominal Power [kW] | N6: 160
M7: Operating Pressure [bar] | N7: 7.5
M8: Load [m³/min] | N8: 14 | O8: =IF(OR(N8>Tabelle2!U2,N8<Tabelle2!U3),"Value must be between "&Tabelle2!U2&" m³/min and "&Tabelle2!U3&" m³/min","") -> 
C9: Ambient temperature [°C]
C10: 29
B11: alternatively: | M11: Package Power [kW] | N11: =Tabelle2!U4 -> 92.54452174
C12: Temperature package in (R8) [°C]
C13: 35 | R13: Compressed Air
C14: =IF(OR(C10="",C10<C13),IF(AND(OR(C13<30,C13>45),C13>0),"Value must be between 30°C and 45°C",""),"Value must be above ambient temperature") ->  | R14: Outlet temperature [°C]
R15: ='Ultima75-160_AC_HRC_Calc_Tool'!C19 -> 39.65320212
H16: Heat Recovery
F22: Customer water inlet | J22: Customer water outlet
F23: Temperature [°C] | G23: 12 | J23: Temperature [°C] | K23: 55 | L23: =IF(K23>85,"Max. value is 85°C","") -> 
G24: =IF(G23>60,"Calculation is currently only possible for max. inlet temperature of 60°C","") ->  | H24: =IF(K23-G23>45,"Max. Temperature difference between inlet and outlet is 45K","") -> 
G25: Specific heat capacity [kJ/kgK] | H25: 3.9
G26: Volume flow [l/min] | H26: ='Ultima75-160_AC_HRC_Calc_Tool'!C17 -> 36.89936989
G27: Pressure loss [bar] | H27: ='Ultima75-160_AC_HRC_Calc_Tool'!C21 -> 0.1299205888
G28: Recoverable heat [kW] | H28: ='Ultima75-160_AC_HRC_Calc_Tool'!C8 -> 103.1337388
B30: Annual savings potential
B31: Compressor | C31: Full load hours per year [h] | G31: 6750
B32: Current heat source | C32: Current fuel | G32: Oil
C33: Current boiler efficiency | G33: 0.8
C34: Fuel price [ct/kWh] | G34: 2
B35: Potential savings per year | C35: Energy [MWh/a] | G35: =H28*G31/1000 -> 696.1527371
C36: CO2 [t/a] | G36: =IF(G32="Other","n.a.",G35*VLOOKUP(G32,Tabelle2!A17:B19,2,FALSE)) -> 185.1766281
C37: Money [€/a] | G37: =G35/G33*G34*10 -> 17403.81843

Sheet Ultima75-160_AC_HRC_Calc_Tool (hidden)
C1: Input Parameters in Blue
B2: Spec. Heat Capacity Fluid Customer side | C2: =Calculator!H25 -> 3.9 | D2: kJ/kg*K | F2: 4D Interpolation- Datenbasis
B3: Spec. Heat Capacity Water = 4,2 kJ/kg*K | F3: Austritt Package | G3: 90 | H3: Eintritt Package | K3: Austritt Package | L3: 70 | M3: Eintritt Package
B4: Spec. Heat Capacity Water /Glycol (70/30) = 3,9 kJ/kg*K | F4: WRG EIN | G4: 40 | H4: 30 | I4: 35 | J4: 45 | K4: WRG EIN | L4: 40 | M4: 30 | N4: 35 | O4: 45
F5: Package Power | G5: 37.92 | H5: 20.976111 | I5: 22.38 | J5: 25.5848 | K5: Package Power | L5: 37.92 | M5: 18.21412105 | N5: 20.29764261 | O5: 35.06394
B6: Package Power (TIS) | C6: =Calculator!N11 -> 92.54452174 | D6: kW | G6: 71.77 | H6: 43.50717531 | I6: 48.1098 | J6: 54.2046824 | L6: 71.77 | M6: 44.11230481 | N6: 49.15833133 | O6: 64.30551
G7: 83.97 | H7: 51.41281191 | I7: 57.1378 | J7: 64.2467464 | L7: 83.97 | M7: 53.44636218 | N7: 59.56011574 | O7: 74.56571
B8: Recoverable Heat | C8: =IF(C16>45,"Temp. Difference to high",Interpolation4DPB(C11,C6,C14,C12,$F$3:$O$20,$G$4:$J$11,$G$3,2,2,1,1)) -> 103.1337388 | D8: kW | G8: 101.23 | H8: 62.59734369 | I8: 69.9102 | J8: 78.4537976 | L8: 101.23 | M8: 66.65175809 | N8: 74.27608287 | O8: 89.08137
G9: 124.24 | H9: 77.50789272 | I9: 86.9376 | J9: 97.3937888 | L9: 124.24 | M9: 84.25640236 | N9: 93.89453036 | O9: 108.43278
B10: Guentner Cooler Temperature IN | C10: 45 | D10: °C | G10: 151.37 | H10: 95.08821411 | I10: 107.0138 | J10: 119.7250344 | L10: 151.37 | M10: 105.0132037 | N10: 117.0257116 | O10: 131.24911
B11: Temperature Package IN (R8) => Value D-XXL | C11: =Calculator!H5 -> 35 | D11: °C | G11: 179.65 | H11: 113.413739 | I11: 127.941 | J11: 143.002868 | L11: 179.65 | M11: 126.6498547 | N11: 141.1373889 | O11: 155.03259
B12: Temperature Package OUT (R9) => Value D-XXL | C12: =C15+5 -> 60 | D12: °C | H12: Eintritt Package | M12: Eintritt Package
F13: WRG EIN | G13: 60 | H13: 30 | I13: 35 | J13: 45 | K13: WRG EIN | L13: 60 | M13: 30 | N13: 35 | O13: 45
B14: Customer Side Water IN | C14: =Calculator!G23 -> 12 | D14: °C | F14: Package Power | G14: 37.92 | H14: 12.28057086 | I14: 13.639557 | J14: 15.34039 | K14: Package Power | L14: 37.92 | M14: 10.6635498 | N14: 12.37045814 | O14: 21.02398747
B15: Customer Side Water OUT | C15: =Calculator!K23 -> 55 | D15: °C | G15: 71.77 | H15: 27.48751302 | I15: 30.52932188 | J15: 34.3362841 | L15: 71.77 | M15: 27.86982938 | N15: 31.19469464 | O15: 40.73471447
B16: Temp. Increase Customer Side Water | C16: =C15-C14 -> 43 | D16: K | G16: 83.97 | H16: 32.8232822 | I16: 36.45555517 | J16: 41.0015101 | L16: 83.97 | M16: 34.12155381 | N16: 38.00106209 | O16: 47.58695005
B17: Customer Side Water FLOW | C17: =C8/($C$2*(C15-C14))*60 -> 36.89936989 | D17: l/min | G17: 101.23 | H17: 40.37208351 | I17: 44.83971801 | J17: 50.4311659 | L17: 101.23 | M17: 42.98697333 | N17: 47.63995255 | O17: 57.26271368
G18: 124.24 | H18: 50.43569407 | I18: 56.0169826 | J18: 63.0022192 | L18: 124.24 | M18: 54.8270632 | N18: 60.49957985 | O18: 70.14313601
B19: Compressed Air Outlet Temperature | C19: =(0.02599*$C$6 + 2.24797)+C11 -> 39.65320212 | D19: °C | G19: 151.37 | H19: 62.30122012 | I19: 69.19556532 | J19: 77.8241521 | L19: 151.37 | M19: 68.80401299 | N19: 75.66930874 | O19: 85.31507843
G20: 179.65 | H20: 74.66970802 | I20: 82.9327684 | J20: 93.2743645 | L20: 179.65 | M20: 83.38414516 | N20: 91.48681335 | O20: 101.1208132
B21: Pressure loss Customer HRC circuit | C21: =0.00009*POWER(C17,2)+0.0002*C17 -> 0.1299205888 | D21: bar
B23: Calculation Tolerance of Recoverable Heat + - 7%
B25: Limitations/ Max. Min Values
B26: Max. HRC Outlet Temperature Customer Side | C26: 85 | D26: °C
B27: Max. Temperature Difference Customer Side | C27: 45 | D27: K
B28: Max. Inlet Temperature Customer Side | C28: 60 | D28: °C
B29: Max. Temperature Package IN (R8) | C29: 45 | D29: °C
B30: Min. Temperature Package IN (R8) | C30: 30 | D30: °C
B32: Max. Ambient Temperature Package @Max. Inlet Temperature Customer Side > 40°C | C32: 40 | D32: °C
B33: Max. Ambient Temperature Package @Max. Inlet Temperature Customer Side <= 40°C | C33: 45 | D33: °C

Sheet Tabelle2 (hidden)
E1: Nominal Power | F1: bar
A2: Nominal Power Ultima [kW] | B2: Operating Pressure [bar] | E2: 160 | F2: 4 | G2: FAD | H2: 6.7 | I2: =IF(AND(Calculator!$N$6=Tabelle2!$E2,Calculator!$N$7=Tabelle2!$F2,H2<=Calculator!$N$8,Tabelle2!J2>=Calculator!$N$8),Calculator!$N$8,"") ->  | J2: 10.18 | K2: =IF(AND(Calculator!$N$6=Tabelle2!$E2,Calculator!$N$7=Tabelle2!$F2,J2<=Calculator!$N$8,Tabelle2!L2>=Calculator!$N$8),Calculator!$N$8,"") ->  | L2: 13.66 | M2: =IF(AND(Calculator!$N$6=Tabelle2!$E2,Calculator!$N$7=Tabelle2!$F2,L2<=Calculator!$N$8,Tabelle2!N2>=Calculator!$N$8),Calculator!$N$8,"") ->  | N2: 17.14 | O2: =IF(AND(Calculator!$N$6=Tabelle2!$E2,Calculator!$N$7=Tabelle2!$F2,N2<=Calculator!$N$8,Tabelle2!P2>=Calculator!$N$8),Calculator!$N$8,"") ->  | P2: 20.61 | Q2: =IF(AND(Calculator!$N$6=Tabelle2!$E2,Calculator!$N$7=Tabelle2!$F2,P2<=Calculator!$N$8,Tabelle2!R2>=Calculator!$N$8),Calculator!$N$8,"") ->  | R2: 24.09 | T2: Max flow rate at selected nominal power and operating pressure: | U2: =ROUND(SUMIFS(R2:R91,E2:E91,Calculator!N6,Tabelle2!F2:F91,Calculator!N7,Tabelle2!G2:G91,"FAD"),2) -> 23.97 | V2: m³/min
A3: 75 | B3: 4 | E3: 160 | F3: 4 | G3: Total Input Power | H3: 37.92 | I3: =IF(I2="","",H3+(I2-H2)/(J2-H2)*(J3-H3)) ->  | J3: 52.15 | K3: =IF(K2="","",J3+(K2-J2)/(L2-J2)*(L3-J3)) ->  | L3: 68.24 | M3: =IF(M2="","",L3+(M2-L2)/(N2-L2)*(N3-L3)) ->  | N3: 86.5 | O3: =IF(O2="","",N3+(O2-N2)/(P2-N2)*(P3-N3)) ->  | P3: 107.09 | Q3: =IF(Q2="","",P3+(Q2-P2)/(R2-P2)*(R3-P3)) ->  | R3: 130.48 | T3: Min flow rate at selected nominal power and operating pressure: | U3: =ROUND(SUMIFS(H2:H91,E2:E91,Calculator!N6,Tabelle2!F2:F91,Calculator!N7,Tabelle2!G2:G91,"FAD"),2) -> 6.7 | V3: m³/min
A4: 90 | B4: 5 | E4: 160 | F4: 5 | G4: FAD | H4: 6.7 | I4: =IF(AND(Calculator!$N$6=Tabelle2!$E4,Calculator!$N$7=Tabelle2!$F4,H4<=Calculator!$N$8,Tabelle2!J4>=Calculator!$N$8),Calculator!$N$8,"") ->  | J4: 10.17 | K4: =IF(AND(Calculator!$N$6=Tabelle2!$E4,Calculator!$N$7=Tabelle2!$F4,J4<=Calculator!$N$8,Tabelle2!L4>=Calculator!$N$8),Calculator!$N$8,"") ->  | L4: 13.65 | M4: =IF(AND(Calculator!$N$6=Tabelle2!$E4,Calculator!$N$7=Tabelle2!$F4,L4<=Calculator!$N$8,Tabelle2!N4>=Calculator!$N$8),Calculator!$N$8,"") ->  | N4: 17.12 | O4: =IF(AND(Calculator!$N$6=Tabelle2!$E4,Calculator!$N$7=Tabelle2!$F4,N4<=Calculator!$N$8,Tabelle2!P4>=Calculator!$N$8),Calculator!$N$8,"") ->  | P4: 20.6 | Q4: =IF(AND(Calculator!$N$6=Tabelle2!$E4,Calculator!$N$7=Tabelle2!$F4,P4<=Calculator!$N$8,Tabelle2!R4>=Calculator!$N$8),Calculator!$N$8,"") ->  | R4: 24.07 | T4: Total input power at selected flow rate and pressure | U4: =MAX(I2:I91,K2:K91,M2:M91,O2:O91,Q2:Q91) -> 92.54452174 | V4: kW
A5: 110 | B5: 6 | E5: 160 | F5: 5 | G5: Total Input Power | H5: 42.36 | I5: =IF(I4="","",H5+(I4-H4)/(J4-H4)*(J5-H5)) ->  | J5: 57.46 | K5: =IF(K4="","",J5+(K4-J4)/(L4-J4)*(L5-J5)) ->  | L5: 74.39 | M5: =IF(M4="","",L5+(M4-L4)/(N4-L4)*(N5-L5)) ->  | N5: 93.42 | O5: =IF(O4="","",N5+(O4-N4)/(P4-N4)*(P5-N5)) ->  | P5: 114.43 | Q5: =IF(Q4="","",P5+(Q4-P4)/(R4-P4)*(R5-P5)) ->  | R5: 138.95
A6: 132 | B6: 7 | E6: 160 | F6: 6 | G6: FAD | H6: 6.7 | I6: =IF(AND(Calculator!$N$6=Tabelle2!$E6,Calculator!$N$7=Tabelle2!$F6,H6<=Calculator!$N$8,Tabelle2!J6>=Calculator!$N$8),Calculator!$N$8,"") ->  | J6: 10.17 | K6: =IF(AND(Calculator!$N$6=Tabelle2!$E6,Calculator!$N$7=Tabelle2!$F6,J6<=Calculator!$N$8,Tabelle2!L6>=Calculator!$N$8),Calculator!$N$8,"") ->  | L6: 13.64 | M6: =IF(AND(Calculator!$N$6=Tabelle2!$E6,Calculator!$N$7=Tabelle2!$F6,L6<=Calculator!$N$8,Tabelle2!N6>=Calculator!$N$8),Calculator!$N$8,"") ->  | N6: 17.1 | O6: =IF(AND(Calculator!$N$6=Tabelle2!$E6,Calculator!$N$7=Tabelle2!$F6,N6<=Calculator!$N$8,Tabelle2!P6>=Calculator!$N$8),Calculator!$N$8,"") ->  | P6: 20.57 | Q6: =IF(AND(Calculator!$N$6=Tabelle2!$E6,Calculator!$N$7=Tabelle2!$F6,P6<=Calculator!$N$8,Tabelle2!R6>=Calculator!$N$8),Calculator!$N$8,"") ->  | R6: 24.04
A7: 160 | B7: 7.5 | E7: 160 | F7: 6 | G7: Total Input Power | H7: 46.81 | I7: =IF(I6="","",H7+(I6-H6)/(J6-H6)*(J7-H7)) ->  | J7: 62.83 | K7: =IF(K6="","",J7+(K6-J6)/(L6-J6)*(L7-J7)) ->  | L7: 80.63 | M7: =IF(M6="","",L7+(M6-L6)/(N6-L6)*(N7-L7)) ->  | N7: 100.41 | O7: =IF(O6="","",N7+(O6-N6)/(P6-N6)*(P7-N7)) ->  | P7: 121.97 | Q7: =IF(Q6="","",P7+(Q6-P6)/(R6-P6)*(R7-P7)) ->  | R7: 147.41
B8: 8 | E8: 160 | F8: 7 | G8: FAD | H8: 6.7 | I8: =IF(AND(Calculator!$N$6=Tabelle2!$E8,Calculator!$N$7=Tabelle2!$F8,H8<=Calculator!$N$8,Tabelle2!J8>=Calculator!$N$8),Calculator!$N$8,"") ->  | J8: 10.16 | K8: =IF(AND(Calculator!$N$6=Tabelle2!$E8,Calculator!$N$7=Tabelle2!$F8,J8<=Calculator!$N$8,Tabelle2!L8>=Calculator!$N$8),Calculator!$N$8,"") ->  | L8: 13.62 | M8: =IF(AND(Calculator!$N$6=Tabelle2!$E8,Calculator!$N$7=Tabelle2!$F8,L8<=Calculator!$N$8,Tabelle2!N8>=Calculator!$N$8),Calculator!$N$8,"") ->  | N8: 17.08 | O8: =IF(AND(Calculator!$N$6=Tabelle2!$E8,Calculator!$N$7=Tabelle2!$F8,N8<=Calculator!$N$8,Tabelle2!P8>=Calculator!$N$8),Calculator!$N$8,"") ->  | P8: 20.54 | Q8: =IF(AND(Calculator!$N$6=Tabelle2!$E8,Calculator!$N$7=Tabelle2!$F8,P8<=Calculator!$N$8,Tabelle2!R8>=Calculator!$N$8),Calculator!$N$8,"") ->  | R8: 24
B9: 8.5 | E9: 160 | F9: 7 | G9: Total Input Power | H9: 51.24 | I9: =IF(I8="","",H9+(I8-H8)/(J8-H8)*(J9-H9)) ->  | J9: 68.23 | K9: =IF(K8="","",J9+(K8-J8)/(L8-J8)*(L9-J9)) ->  | L9: 86.99 | M9: =IF(M8="","",L9+(M8-L8)/(N8-L8)*(N9-L9)) ->  | N9: 107.44 | O9: =IF(O8="","",N9+(O8-N8)/(P8-N8)*(P9-N9)) ->  | P9: 129.95 | Q9: =IF(Q8="","",P9+(Q8-P8)/(R8-P8)*(R9-P9)) ->  | R9: 155.64
B10: 9 | E10: 160 | F10: 7.5 | G10: FAD | H10: 6.7 | I10: =IF(AND(Calculator!$N$6=Tabelle2!$E10,Calculator!$N$7=Tabelle2!$F10,H10<=Calculator!$N$8,Tabelle2!J10>=Calculator!$N$8),Calculator!$N$8,"") ->  | J10: 10.15 | K10: =IF(AND(Calculator!$N$6=Tabelle2!$E10,Calculator!$N$7=Tabelle2!$F10,J10<=Calculator!$N$8,Tabelle2!L10>=Calculator!$N$8),Calculator!$N$8,"") ->  | L10: 13.61 | M10: =IF(AND(Calculator!$N$6=Tabelle2!$E10,Calculator!$N$7=Tabelle2!$F10,L10<=Calculator!$N$8,Tabelle2!N10>=Calculator!$N$8),Calculator!$N$8,"") -> 14 | N10: 17.06 | O10: =IF(AND(Calculator!$N$6=Tabelle2!$E10,Calculator!$N$7=Tabelle2!$F10,N10<=Calculator!$N$8,Tabelle2!P10>=Calculator!$N$8),Calculator!$N$8,"") ->  | P10: 20.52 | Q10: =IF(AND(Calculator!$N$6=Tabelle2!$E10,Calculator!$N$7=Tabelle2!$F10,P10<=Calculator!$N$8,Tabelle2!R10>=Calculator!$N$8),Calculator!$N$8,"") ->  | R10: 23.97
B11: 10 | E11: 160 | F11: 7.5 | G11: Total Input Power | H11: 53.51 | I11: =IF(I10="","",H11+(I10-H10)/(J10-H10)*(J11-H11)) ->  | J11: 70.97 | K11: =IF(K10="","",J11+(K10-J10)/(L10-J10)*(L11-J11)) ->  | L11: 90.2 | M11: =IF(M10="","",L11+(M10-L10)/(N10-L10)*(N11-L11)) -> 92.54452174 | N11: 110.94 | O11: =IF(O10="","",N11+(O10-N10)/(P10-N10)*(P11-N11)) ->  | P11: 134.08 | Q11: =IF(Q10="","",P11+(Q10-P10)/(R10-P10)*(R11-P11)) ->  | R11: 159.67
E12: 160 | F12: 8 | G12: FAD | H12: 6.7 | I12: =IF(AND(Calculator!$N$6=Tabelle2!$E12,Calculator!$N$7=Tabelle2!$F12,H12<=Calculator!$N$8,Tabelle2!J12>=Calculator!$N$8),Calculator!$N$8,"") ->  | J12: 10.15 | K12: =IF(AND(Calculator!$N$6=Tabelle2!$E12,Calculator!$N$7=Tabelle2!$F12,J12<=Calculator!$N$8,Tabelle2!L12>=Calculator!$N$8),Calculator!$N$8,"") ->  | L12: 13.59 | M12: =IF(AND(Calculator!$N$6=Tabelle2!$E12,Calculator!$N$7=Tabelle2!$F12,L12<=Calculator!$N$8,Tabelle2!N12>=Calculator!$N$8),Calculator!$N$8,"") ->  | N12: 17.04 | O12: =IF(AND(Calculator!$N$6=Tabelle2!$E12,Calculator!$N$7=Tabelle2!$F12,N12<=Calculator!$N$8,Tabelle2!P12>=Calculator!$N$8),Calculator!$N$8,"") ->  | P12: 20.48 | Q12: =IF(AND(Calculator!$N$6=Tabelle2!$E12,Calculator!$N$7=Tabelle2!$F12,P12<=Calculator!$N$8,Tabelle2!R12>=Calculator!$N$8),Calculator!$N$8,"") ->  | R12: 23.93
E13: 160 | F13: 8 | G13: Total Input Power | H13: 55.87 | I13: =IF(I12="","",H13+(I12-H12)/(J12-H12)*(J13-H13)) ->  | J13: 73.74 | K13: =IF(K12="","",J13+(K12-J12)/(L12-J12)*(L13-J13)) ->  | L13: 93.4 | M13: =IF(M12="","",L13+(M12-L12)/(N12-L12)*(N13-L13)) ->  | N13: 114.43 | O13: =IF(O12="","",N13+(O12-N12)/(P12-N12)*(P13-N13)) ->  | P13: 138.24 | Q13: =IF(Q12="","",P13+(Q12-P12)/(R12-P12)*(R13-P13)) ->  | R13: 163.67
E14: 160 | F14: 8.5 | G14: FAD | H14: 6.95 | I14: =IF(AND(Calculator!$N$6=Tabelle2!$E14,Calculator!$N$7=Tabelle2!$F14,H14<=Calculator!$N$8,Tabelle2!J14>=Calculator!$N$8),Calculator!$N$8,"") ->  | J14: 10.33 | K14: =IF(AND(Calculator!$N$6=Tabelle2!$E14,Calculator!$N$7=Tabelle2!$F14,J14<=Calculator!$N$8,Tabelle2!L14>=Calculator!$N$8),Calculator!$N$8,"") ->  | L14: 13.72 | M14: =IF(AND(Calculator!$N$6=Tabelle2!$E14,Calculator!$N$7=Tabelle2!$F14,L14<=Calculator!$N$8,Tabelle2!N14>=Calculator!$N$8),Calculator!$N$8,"") ->  | N14: 17.1 | O14: =IF(AND(Calculator!$N$6=Tabelle2!$E14,Calculator!$N$7=Tabelle2!$F14,N14<=Calculator!$N$8,Tabelle2!P14>=Calculator!$N$8),Calculator!$N$8,"") ->  | P14: 20.49 | Q14: =IF(AND(Calculator!$N$6=Tabelle2!$E14,Calculator!$N$7=Tabelle2!$F14,P14<=Calculator!$N$8,Tabelle2!R14>=Calculator!$N$8),Calculator!$N$8,"") ->  | R14: 23.87
E15: 160 | F15: 8.5 | G15: Total Input Power | H15: 59.64 | I15: =IF(I14="","",H15+(I14-H14)/(J14-H14)*(J15-H15)) ->  | J15: 77.67 | K15: =IF(K14="","",J15+(K14-J14)/(L14-J14)*(L15-J15)) ->  | L15: 97.48 | M15: =IF(M14="","",L15+(M14-L14)/(N14-L14)*(N15-L15)) ->  | N15: 118.56 | O15: =IF(O14="","",N15+(O14-N14)/(P14-N14)*(P15-N15)) ->  | P15: 142.75 | Q15: =IF(Q14="","",P15+(Q14-P14)/(R14-P14)*(R15-P15)) ->  | R15: 167.66
A16: CO2 emission factors by energy carrier [t/MWh] | E16: 160 | F16: 9 | G16: FAD | H16: 7.2 | I16: =IF(AND(Calculator!$N$6=Tabelle2!$E16,Calculator!$N$7=Tabelle2!$F16,H16<=Calculator!$N$8,Tabelle2!J16>=Calculator!$N$8),Calculator!$N$8,"") ->  | J16: 10.52 | K16: =IF(AND(Calculator!$N$6=Tabelle2!$E16,Calculator!$N$7=Tabelle2!$F16,J16<=Calculator!$N$8,Tabelle2!L16>=Calculator!$N$8),Calculator!$N$8,"") ->  | L16: 13.84 | M16: =IF(AND(Calculator!$N$6=Tabelle2!$E16,Calculator!$N$7=Tabelle2!$F16,L16<=Calculator!$N$8,Tabelle2!N16>=Calculator!$N$8),Calculator!$N$8,"") ->  | N16: 17.16 | O16: =IF(AND(Calculator!$N$6=Tabelle2!$E16,Calculator!$N$7=Tabelle2!$F16,N16<=Calculator!$N$8,Tabelle2!P16>=Calculator!$N$8),Calculator!$N$8,"") ->  | P16: 20.48 | Q16: =IF(AND(Calculator!$N$6=Tabelle2!$E16,Calculator!$N$7=Tabelle2!$F16,P16<=Calculator!$N$8,Tabelle2!R16>=Calculator!$N$8),Calculator!$N$8,"") ->  | R16: 23.8
A17: Gas | B17: 0.202 | E17: 160 | F17: 9 | G17: Total Input Power | H17: 63.58 | I17: =IF(I16="","",H17+(I16-H16)/(J16-H16)*(J17-H17)) ->  | J17: 81.7 | K17: =IF(K16="","",J17+(K16-J16)/(L16-J16)*(L17-J17)) ->  | L17: 101.56 | M17: =IF(M16="","",L17+(M16-L16)/(N16-L16)*(N17-L17)) ->  | N17: 122.74 | O17: =IF(O16="","",N17+(O16-N16)/(P16-N16)*(P17-N17)) ->  | P17: 147.21 | Q17: =IF(Q16="","",P17+(Q16-P16)/(R16-P16)*(R17-P17)) ->  | R17: 171.66
A18: Oil | B18: 0.266 | E18: 160 | F18: 10 | G18: FAD | H18: 7.7 | I18: =IF(AND(Calculator!$N$6=Tabelle2!$E18,Calculator!$N$7=Tabelle2!$F18,H18<=Calculator!$N$8,Tabelle2!J18>=Calculator!$N$8),Calculator!$N$8,"") ->  | J18: 10.89 | K18: =IF(AND(Calculator!$N$6=Tabelle2!$E18,Calculator!$N$7=Tabelle2!$F18,J18<=Calculator!$N$8,Tabelle2!L18>=Calculator!$N$8),Calculator!$N$8,"") ->  | L18: 14.08 | M18: =IF(AND(Calculator!$N$6=Tabelle2!$E18,Calculator!$N$7=Tabelle2!$F18,L18<=Calculator!$N$8,Tabelle2!N18>=Calculator!$N$8),Calculator!$N$8,"") ->  | N18: 17.27 | O18: =IF(AND(Calculator!$N$6=Tabelle2!$E18,Calculator!$N$7=Tabelle2!$F18,N18<=Calculator!$N$8,Tabelle2!P18>=Calculator!$N$8),Calculator!$N$8,"") ->  | P18: 20.45 | Q18: =IF(AND(Calculator!$N$6=Tabelle2!$E18,Calculator!$N$7=Tabelle2!$F18,P18<=Calculator!$N$8,Tabelle2!R18>=Calculator!$N$8),Calculator!$N$8,"") ->  | R18: 23.64
A19: Coal | B19: 0.335 | E19: 160 | F19: 10 | G19: Total Input Power | H19: 71.77 | I19: =IF(I18="","",H19+(I18-H18)/(J18-H18)*(J19-H19)) ->  | J19: 89.98 | K19: =IF(K18="","",J19+(K18-J18)/(L18-J18)*(L19-J19)) ->  | L19: 109.69 | M19: =IF(M18="","",L19+(M18-L18)/(N18-L18)*(N19-L19)) ->  | N19: 131.44 | O19: =IF(O18="","",N19+(O18-N18)/(P18-N18)*(P19-N19)) ->  | P19: 155.85 | Q19: =IF(Q18="","",P19+(Q18-P18)/(R18-P18)*(R19-P19)) ->  | R19: 179.65
A20: Other | E20: 132 | F20: 4 | G20: FAD | H20: 6.7 | I20: =IF(AND(Calculator!$N$6=Tabelle2!$E20,Calculator!$N$7=Tabelle2!$F20,H20<=Calculator!$N$8,Tabelle2!J20>=Calculator!$N$8),Calculator!$N$8,"") ->  | J20: 10.18 | K20: =IF(AND(Calculator!$N$6=Tabelle2!$E20,Calculator!$N$7=Tabelle2!$F20,J20<=Calculator!$N$8,Tabelle2!L20>=Calculator!$N$8),Calculator!$N$8,"") ->  | L20: 13.66 | M20: =IF(AND(Calculator!$N$6=Tabelle2!$E20,Calculator!$N$7=Tabelle2!$F20,L20<=Calculator!$N$8,Tabelle2!N20>=Calculator!$N$8),Calculator!$N$8,"") ->  | N20: 17.14 | O20: =IF(AND(Calculator!$N$6=Tabelle2!$E20,Calculator!$N$7=Tabelle2!$F20,N20<=Calculator!$N$8,Tabelle2!P20>=Calculator!$N$8),Calculator!$N$8,"") ->  | P20: 20.61 | Q20: =IF(AND(Calculator!$N$6=Tabelle2!$E20,Calculator!$N$7=Tabelle2!$F20,P20<=Calculator!$N$8,Tabelle2!R20>=Calculator!$N$8),Calculator!$N$8,"") ->  | R20: 24.09
E21: 132 | F21: 4 | G21: Total Input Power | H21: 37.92 | I21: =IF(I20="","",H21+(I20-H20)/(J20-H20)*(J21-H21)) ->  | J21: 52.15 | K21: =IF(K20="","",J21+(K20-J20)/(L20-J20)*(L21-J21)) ->  | L21: 68.24 | M21: =IF(M20="","",L21+(M20-L20)/(N20-L20)*(N21-L21)) ->  | N21: 86.5 | O21: =IF(O20="","",N21+(O20-N20)/(P20-N20)*(P21-N21)) ->  | P21: 107.09 | Q21: =IF(Q20="","",P21+(Q20-P20)/(R20-P20)*(R21-P21)) ->  | R21: 130.48
E22: 132 | F22: 5 | G22: FAD | H22: 6.7 | I22: =IF(AND(Calculator!$N$6=Tabelle2!$E22,Calculator!$N$7=Tabelle2!$F22,H22<=Calculator!$N$8,Tabelle2!J22>=Calculator!$N$8),Calculator!$N$8,"") ->  | J22: 10.17 | K22: =IF(AND(Calculator!$N$6=Tabelle2!$E22,Calculator!$N$7=Tabelle2!$F22,J22<=Calculator!$N$8,Tabelle2!L22>=Calculator!$N$8),Calculator!$N$8,"") ->  | L22: 13.65 | M22: =IF(AND(Calculator!$N$6=Tabelle2!$E22,Calculator!$N$7=Tabelle2!$F22,L22<=Calculator!$N$8,Tabelle2!N22>=Calculator!$N$8),Calculator!$N$8,"") ->  | N22: 17.12 | O22: =IF(AND(Calculator!$N$6=Tabelle2!$E22,Calculator!$N$7=Tabelle2!$F22,N22<=Calculator!$N$8,Tabelle2!P22>=Calculator!$N$8),Calculator!$N$8,"") ->  | P22: 20.6 | Q22: =IF(AND(Calculator!$N$6=Tabelle2!$E22,Calculator!$N$7=Tabelle2!$F22,P22<=Calculator!$N$8,Tabelle2!R22>=Calculator!$N$8),Calculator!$N$8,"") ->  | R22: 24.07
E23: 132 | F23: 5 | G23: Total Input Power | H23: 42.36 | I23: =IF(I22="","",H23+(I22-H22)/(J22-H22)*(J23-H23)) ->  | J23: 57.47 | K23: =IF(K22="","",J23+(K22-J22)/(L22-J22)*(L23-J23)) ->  | L23: 74.39 | M23: =IF(M22="","",L23+(M22-L22)/(N22-L22)*(N23-L23)) ->  | N23: 93.43 | O23: =IF(O22="","",N23+(O22-N22)/(P22-N22)*(P23-N23)) ->  | P23: 114.43 | Q23: =IF(Q22="","",P23+(Q22-P22)/(R22-P22)*(R23-P23)) ->  | R23: 138.95
E24: 132 | F24: 6 | G24: FAD | H24: 6.7 | I24: =IF(AND(Calculator!$N$6=Tabelle2!$E24,Calculator!$N$7=Tabelle2!$F24,H24<=Calculator!$N$8,Tabelle2!J24>=Calculator!$N$8),Calculator!$N$8,"") ->  | J24: 10.17 | K24: =IF(AND(Calculator!$N$6=Tabelle2!$E24,Calculator!$N$7=Tabelle2!$F24,J24<=Calculator!$N$8,Tabelle2!L24>=Calculator!$N$8),Calculator!$N$8,"") ->  | L24: 13.64 | M24: =IF(AND(Calculator!$N$6=Tabelle2!$E24,Calculator!$N$7=Tabelle2!$F24,L24<=Calculator!$N$8,Tabelle2!N24>=Calculator!$N$8),Calculator!$N$8,"") ->  | N24: 17.11 | O24: =IF(AND(Calculator!$N$6=Tabelle2!$E24,Calculator!$N$7=Tabelle2!$F24,N24<=Calculator!$N$8,Tabelle2!P24>=Calculator!$N$8),Calculator!$N$8,"") ->  | P24: 20.57 | Q24: =IF(AND(Calculator!$N$6=Tabelle2!$E24,Calculator!$N$7=Tabelle2!$F24,P24<=Calculator!$N$8,Tabelle2!R24>=Calculator!$N$8),Calculator!$N$8,"") ->  | R24: 24.04
E25: 132 | F25: 6 | G25: Total Input Power | H25: 46.81 | I25: =IF(I24="","",H25+(I24-H24)/(J24-H24)*(J25-H25)) ->  | J25: 62.83 | K25: =IF(K24="","",J25+(K24-J24)/(L24-J24)*(L25-J25)) ->  | L25: 80.63 | M25: =IF(M24="","",L25+(M24-L24)/(N24-L24)*(N25-L25)) ->  | N25: 100.41 | O25: =IF(O24="","",N25+(O24-N24)/(P24-N24)*(P25-N25)) ->  | P25: 121.97 | Q25: =IF(Q24="","",P25+(Q24-P24)/(R24-P24)*(R25-P25)) ->  | R25: 147.42
E26: 132 | F26: 7 | G26: FAD | H26: 6.7 | I26: =IF(AND(Calculator!$N$6=Tabelle2!$E26,Calculator!$N$7=Tabelle2!$F26,H26<=Calculator!$N$8,Tabelle2!J26>=Calculator!$N$8),Calculator!$N$8,"") ->  | J26: 9.99 | K26: =IF(AND(Calculator!$N$6=Tabelle2!$E26,Calculator!$N$7=Tabelle2!$F26,J26<=Calculator!$N$8,Tabelle2!L26>=Calculator!$N$8),Calculator!$N$8,"") ->  | L26: 13.28 | M26: =IF(AND(Calculator!$N$6=Tabelle2!$E26,Calculator!$N$7=Tabelle2!$F26,L26<=Calculator!$N$8,Tabelle2!N26>=Calculator!$N$8),Calculator!$N$8,"") ->  | N26: 16.57 | O26: =IF(AND(Calculator!$N$6=Tabelle2!$E26,Calculator!$N$7=Tabelle2!$F26,N26<=Calculator!$N$8,Tabelle2!P26>=Calculator!$N$8),Calculator!$N$8,"") ->  | P26: 19.86 | Q26: =IF(AND(Calculator!$N$6=Tabelle2!$E26,Calculator!$N$7=Tabelle2!$F26,P26<=Calculator!$N$8,Tabelle2!R26>=Calculator!$N$8),Calculator!$N$8,"") ->  | R26: 23.15
E27: 132 | F27: 7 | G27: Total Input Power | H27: 51.24 | I27: =IF(I26="","",H27+(I26-H26)/(J26-H26)*(J27-H27)) ->  | J27: 67.35 | K27: =IF(K26="","",J27+(K26-J26)/(L26-J26)*(L27-J27)) ->  | L27: 85.05 | M27: =IF(M26="","",L27+(M26-L26)/(N26-L26)*(N27-L27)) ->  | N27: 104.35 | O27: =IF(O26="","",N27+(O26-N26)/(P26-N26)*(P27-N27)) ->  | P27: 125.17 | Q27: =IF(Q26="","",P27+(Q26-P26)/(R26-P26)*(R27-P27)) ->  | R27: 149.32
E28: 132 | F28: 7.5 | G28: FAD | H28: 6.7 | I28: =IF(AND(Calculator!$N$6=Tabelle2!$E28,Calculator!$N$7=Tabelle2!$F28,H28<=Calculator!$N$8,Tabelle2!J28>=Calculator!$N$8),Calculator!$N$8,"") ->  | J28: 9.9 | K28: =IF(AND(Calculator!$N$6=Tabelle2!$E28,Calculator!$N$7=Tabelle2!$F28,J28<=Calculator!$N$8,Tabelle2!L28>=Calculator!$N$8),Calculator!$N$8,"") ->  | L28: 13.09 | M28: =IF(AND(Calculator!$N$6=Tabelle2!$E28,Calculator!$N$7=Tabelle2!$F28,L28<=Calculator!$N$8,Tabelle2!N28>=Calculator!$N$8),Calculator!$N$8,"") ->  | N28: 16.29 | O28: =IF(AND(Calculator!$N$6=Tabelle2!$E28,Calculator!$N$7=Tabelle2!$F28,N28<=Calculator!$N$8,Tabelle2!P28>=Calculator!$N$8),Calculator!$N$8,"") ->  | P28: 19.48 | Q28: =IF(AND(Calculator!$N$6=Tabelle2!$E28,Calculator!$N$7=Tabelle2!$F28,P28<=Calculator!$N$8,Tabelle2!R28>=Calculator!$N$8),Calculator!$N$8,"") ->  | R28: 22.68
E29: 132 | F29: 7.5 | G29: Total Input Power | H29: 53.51 | I29: =IF(I28="","",H29+(I28-H28)/(J28-H28)*(J29-H29)) ->  | J29: 69.6 | K29: =IF(K28="","",J29+(K28-J28)/(L28-J28)*(L29-J29)) ->  | L29: 87.19 | M29: =IF(M28="","",L29+(M28-L28)/(N28-L28)*(N29-L29)) ->  | N29: 106.19 | O29: =IF(O28="","",N29+(O28-N28)/(P28-N28)*(P29-N29)) ->  | P29: 126.68 | Q29: =IF(Q28="","",P29+(Q28-P28)/(R28-P28)*(R29-P29)) ->  | R29: 150.18
E30: 132 | F30: 8 | G30: FAD | H30: 6.7 | I30: =IF(AND(Calculator!$N$6=Tabelle2!$E30,Calculator!$N$7=Tabelle2!$F30,H30<=Calculator!$N$8,Tabelle2!J30>=Calculator!$N$8),Calculator!$N$8,"") ->  | J30: 9.8 | K30: =IF(AND(Calculator!$N$6=Tabelle2!$E30,Calculator!$N$7=Tabelle2!$F30,J30<=Calculator!$N$8,Tabelle2!L30>=Calculator!$N$8),Calculator!$N$8,"") ->  | L30: 12.89 | M30: =IF(AND(Calculator!$N$6=Tabelle2!$E30,Calculator!$N$7=Tabelle2!$F30,L30<=Calculator!$N$8,Tabelle2!N30>=Calculator!$N$8),Calculator!$N$8,"") ->  | N30: 15.99 | O30: =IF(AND(Calculator!$N$6=Tabelle2!$E30,Calculator!$N$7=Tabelle2!$F30,N30<=Calculator!$N$8,Tabelle2!P30>=Calculator!$N$8),Calculator!$N$8,"") ->  | P30: 19.09 | Q30: =IF(AND(Calculator!$N$6=Tabelle2!$E30,Calculator!$N$7=Tabelle2!$F30,P30<=Calculator!$N$8,Tabelle2!R30>=Calculator!$N$8),Calculator!$N$8,"") ->  | R30: 22.19
E31: 132 | F31: 8 | G31: Total Input Power | H31: 55.87 | I31: =IF(I30="","",H31+(I30-H30)/(J30-H30)*(J31-H31)) ->  | J31: 71.86 | K31: =IF(K30="","",J31+(K30-J30)/(L30-J30)*(L31-J31)) ->  | L31: 89.28 | M31: =IF(M30="","",L31+(M30-L30)/(N30-L30)*(N31-L31)) ->  | N31: 107.93 | O31: =IF(O30="","",N31+(O30-N30)/(P30-N30)*(P31-N31)) ->  | P31: 128.09 | Q31: =IF(Q30="","",P31+(Q30-P30)/(R30-P30)*(R31-P31)) ->  | R31: 150.99
E32: 132 | F32: 8.5 | G32: FAD | H32: 6.95 | I32: =IF(AND(Calculator!$N$6=Tabelle2!$E32,Calculator!$N$7=Tabelle2!$F32,H32<=Calculator!$N$8,Tabelle2!J32>=Calculator!$N$8),Calculator!$N$8,"") ->  | J32: 9.88 | K32: =IF(AND(Calculator!$N$6=Tabelle2!$E32,Calculator!$N$7=Tabelle2!$F32,J32<=Calculator!$N$8,Tabelle2!L32>=Calculator!$N$8),Calculator!$N$8,"") ->  | L32: 12.81 | M32: =IF(AND(Calculator!$N$6=Tabelle2!$E32,Calculator!$N$7=Tabelle2!$F32,L32<=Calculator!$N$8,Tabelle2!N32>=Calculator!$N$8),Calculator!$N$8,"") ->  | N32: 15.75 | O32: =IF(AND(Calculator!$N$6=Tabelle2!$E32,Calculator!$N$7=Tabelle2!$F32,N32<=Calculator!$N$8,Tabelle2!P32>=Calculator!$N$8),Calculator!$N$8,"") ->  | P32: 18.68 | Q32: =IF(AND(Calculator!$N$6=Tabelle2!$E32,Calculator!$N$7=Tabelle2!$F32,P32<=Calculator!$N$8,Tabelle2!R32>=Calculator!$N$8),Calculator!$N$8,"") ->  | R32: 21.61
E33: 132 | F33: 8.5 | G33: Total Input Power | H33: 59.64 | I33: =IF(I32="","",H33+(I32-H32)/(J32-H32)*(J33-H33)) ->  | J33: 75.17 | K33: =IF(K32="","",J33+(K32-J32)/(L32-J32)*(L33-J33)) ->  | L33: 92.04 | M33: =IF(M32="","",L33+(M32-L32)/(N32-L32)*(N33-L33)) ->  | N33: 109.93 | O33: =IF(O32="","",N33+(O32-N32)/(P32-N32)*(P33-N33)) ->  | P33: 129.36 | Q33: =IF(Q32="","",P33+(Q32-P32)/(R32-P32)*(R33-P33)) ->  | R33: 151.23
E34: 132 | F34: 9 | G34: FAD | H34: 7.2 | I34: =IF(AND(Calculator!$N$6=Tabelle2!$E34,Calculator!$N$7=Tabelle2!$F34,H34<=Calculator!$N$8,Tabelle2!J34>=Calculator!$N$8),Calculator!$N$8,"") ->  | J34: 9.97 | K34: =IF(AND(Calculator!$N$6=Tabelle2!$E34,Calculator!$N$7=Tabelle2!$F34,J34<=Calculator!$N$8,Tabelle2!L34>=Calculator!$N$8),Calculator!$N$8,"") ->  | L34: 12.73 | M34: =IF(AND(Calculator!$N$6=Tabelle2!$E34,Calculator!$N$7=Tabelle2!$F34,L34<=Calculator!$N$8,Tabelle2!N34>=Calculator!$N$8),Calculator!$N$8,"") ->  | N34: 15.5 | O34: =IF(AND(Calculator!$N$6=Tabelle2!$E34,Calculator!$N$7=Tabelle2!$F34,N34<=Calculator!$N$8,Tabelle2!P34>=Calculator!$N$8),Calculator!$N$8,"") ->  | P34: 18.26 | Q34: =IF(AND(Calculator!$N$6=Tabelle2!$E34,Calculator!$N$7=Tabelle2!$F34,P34<=Calculator!$N$8,Tabelle2!R34>=Calculator!$N$8),Calculator!$N$8,"") ->  | R34: 21.03
E35: 132 | F35: 9 | G35: Total Input Power | H35: 63.58 | I35: =IF(I34="","",H35+(I34-H34)/(J34-H34)*(J35-H35)) ->  | J35: 78.55 | K35: =IF(K34="","",J35+(K34-J34)/(L34-J34)*(L35-J35)) ->  | L35: 94.78 | M35: =IF(M34="","",L35+(M34-L34)/(N34-L34)*(N35-L35)) ->  | N35: 111.87 | O35: =IF(O34="","",N35+(O34-N34)/(P34-N34)*(P35-N35)) ->  | P35: 130.53 | Q35: =IF(Q34="","",P35+(Q34-P34)/(R34-P34)*(R35-P35)) ->  | R35: 151.38
E36: 132 | F36: 10 | G36: FAD | H36: 7.7 | I36: =IF(AND(Calculator!$N$6=Tabelle2!$E36,Calculator!$N$7=Tabelle2!$F36,H36<=Calculator!$N$8,Tabelle2!J36>=Calculator!$N$8),Calculator!$N$8,"") ->  | J36: 10.13 | K36: =IF(AND(Calculator!$N$6=Tabelle2!$E36,Calculator!$N$7=Tabelle2!$F36,J36<=Calculator!$N$8,Tabelle2!L36>=Calculator!$N$8),Calculator!$N$8,"") ->  | L36: 12.56 | M36: =IF(AND(Calculator!$N$6=Tabelle2!$E36,Calculator!$N$7=Tabelle2!$F36,L36<=Calculator!$N$8,Tabelle2!N36>=Calculator!$N$8),Calculator!$N$8,"") ->  | N36: 15 | O36: =IF(AND(Calculator!$N$6=Tabelle2!$E36,Calculator!$N$7=Tabelle2!$F36,N36<=Calculator!$N$8,Tabelle2!P36>=Calculator!$N$8),Calculator!$N$8,"") ->  | P36: 17.43 | Q36: =IF(AND(Calculator!$N$6=Tabelle2!$E36,Calculator!$N$7=Tabelle2!$F36,P36<=Calculator!$N$8,Tabelle2!R36>=Calculator!$N$8),Calculator!$N$8,"") ->  | R36: 19.86
E37: 132 | F37: 10 | G37: Total Input Power | H37: 71.77 | I37: =IF(I36="","",H37+(I36-H36)/(J36-H36)*(J37-H37)) ->  | J37: 85.49 | K37: =IF(K36="","",J37+(K36-J36)/(L36-J36)*(L37-J37)) ->  | L37: 100.23 | M37: =IF(M36="","",L37+(M36-L36)/(N36-L36)*(N37-L37)) ->  | N37: 115.61 | O37: =IF(O36="","",N37+(O36-N36)/(P36-N36)*(P37-N37)) ->  | P37: 132.64 | Q37: =IF(Q36="","",P37+(Q36-P36)/(R36-P36)*(R37-P37)) ->  | R37: 151.37
E38: 110 | F38: 4 | G38: FAD | H38: 6.7 | I38: =IF(AND(Calculator!$N$6=Tabelle2!$E38,Calculator!$N$7=Tabelle2!$F38,H38<=Calculator!$N$8,Tabelle2!J38>=Calculator!$N$8),Calculator!$N$8,"") ->  | J38: 9.98 | K38: =IF(AND(Calculator!$N$6=Tabelle2!$E38,Calculator!$N$7=Tabelle2!$F38,J38<=Calculator!$N$8,Tabelle2!L38>=Calculator!$N$8),Calculator!$N$8,"") ->  | L38: 13.25 | M38: =IF(AND(Calculator!$N$6=Tabelle2!$E38,Calculator!$N$7=Tabelle2!$F38,L38<=Calculator!$N$8,Tabelle2!N38>=Calculator!$N$8),Calculator!$N$8,"") ->  | N38: 16.53 | O38: =IF(AND(Calculator!$N$6=Tabelle2!$E38,Calculator!$N$7=Tabelle2!$F38,N38<=Calculator!$N$8,Tabelle2!P38>=Calculator!$N$8),Calculator!$N$8,"") ->  | P38: 19.8 | Q38: =IF(AND(Calculator!$N$6=Tabelle2!$E38,Calculator!$N$7=Tabelle2!$F38,P38<=Calculator!$N$8,Tabelle2!R38>=Calculator!$N$8),Calculator!$N$8,"") ->  | R38: 23.08
E39: 110 | F39: 4 | G39: Total Input Power | H39: 37.92 | I39: =IF(I38="","",H39+(I38-H38)/(J38-H38)*(J39-H39)) ->  | J39: 51.28 | K39: =IF(K38="","",J39+(K38-J38)/(L38-J38)*(L39-J39)) ->  | L39: 66.26 | M39: =IF(M38="","",L39+(M38-L38)/(N38-L38)*(N39-L39)) ->  | N39: 83.13 | O39: =IF(O38="","",N39+(O38-N38)/(P38-N38)*(P39-N39)) ->  | P39: 102.13 | Q39: =IF(Q38="","",P39+(Q38-P38)/(R38-P38)*(R39-P39)) ->  | R39: 123.12
E40: 110 | F40: 5 | G40: FAD | H40: 6.7 | I40: =IF(AND(Calculator!$N$6=Tabelle2!$E40,Calculator!$N$7=Tabelle2!$F40,H40<=Calculator!$N$8,Tabelle2!J40>=Calculator!$N$8),Calculator!$N$8,"") ->  | J40: 9.76 | K40: =IF(AND(Calculator!$N$6=Tabelle2!$E40,Calculator!$N$7=Tabelle2!$F40,J40<=Calculator!$N$8,Tabelle2!L40>=Calculator!$N$8),Calculator!$N$8,"") ->  | L40: 12.83 | M40: =IF(AND(Calculator!$N$6=Tabelle2!$E40,Calculator!$N$7=Tabelle2!$F40,L40<=Calculator!$N$8,Tabelle2!N40>=Calculator!$N$8),Calculator!$N$8,"") ->  | N40: 15.89 | O40: =IF(AND(Calculator!$N$6=Tabelle2!$E40,Calculator!$N$7=Tabelle2!$F40,N40<=Calculator!$N$8,Tabelle2!P40>=Calculator!$N$8),Calculator!$N$8,"") ->  | P40: 18.95 | Q40: =IF(AND(Calculator!$N$6=Tabelle2!$E40,Calculator!$N$7=Tabelle2!$F40,P40<=Calculator!$N$8,Tabelle2!R40>=Calculator!$N$8),Calculator!$N$8,"") ->  | R40: 22.01
E41: 110 | F41: 5 | G41: Total Input Power | H41: 42.36 | I41: =IF(I40="","",H41+(I40-H40)/(J40-H40)*(J41-H41)) ->  | J41: 55.59 | K41: =IF(K40="","",J41+(K40-J40)/(L40-J40)*(L41-J41)) ->  | L41: 70.2 | M41: =IF(M40="","",L41+(M40-L40)/(N40-L40)*(N41-L41)) ->  | N41: 86.4 | O41: =IF(O40="","",N41+(O40-N40)/(P40-N40)*(P41-N41)) ->  | P41: 104.27 | Q41: =IF(Q40="","",P41+(Q40-P40)/(R40-P40)*(R41-P41)) ->  | R41: 123.79
E42: 110 | F42: 6 | G42: FAD | H42: 6.7 | I42: =IF(AND(Calculator!$N$6=Tabelle2!$E42,Calculator!$N$7=Tabelle2!$F42,H42<=Calculator!$N$8,Tabelle2!J42>=Calculator!$N$8),Calculator!$N$8,"") ->  | J42: 9.54 | K42: =IF(AND(Calculator!$N$6=Tabelle2!$E42,Calculator!$N$7=Tabelle2!$F42,J42<=Calculator!$N$8,Tabelle2!L42>=Calculator!$N$8),Calculator!$N$8,"") ->  | L42: 12.38 | M42: =IF(AND(Calculator!$N$6=Tabelle2!$E42,Calculator!$N$7=Tabelle2!$F42,L42<=Calculator!$N$8,Tabelle2!N42>=Calculator!$N$8),Calculator!$N$8,"") ->  | N42: 15.22 | O42: =IF(AND(Calculator!$N$6=Tabelle2!$E42,Calculator!$N$7=Tabelle2!$F42,N42<=Calculator!$N$8,Tabelle2!P42>=Calculator!$N$8),Calculator!$N$8,"") ->  | P42: 18.06 | Q42: =IF(AND(Calculator!$N$6=Tabelle2!$E42,Calculator!$N$7=Tabelle2!$F42,P42<=Calculator!$N$8,Tabelle2!R42>=Calculator!$N$8),Calculator!$N$8,"") ->  | R42: 20.9
E43: 110 | F43: 6 | G43: Total Input Power | H43: 46.81 | I43: =IF(I42="","",H43+(I42-H42)/(J42-H42)*(J43-H43)) ->  | J43: 59.81 | K43: =IF(K42="","",J43+(K42-J42)/(L42-J42)*(L43-J43)) ->  | L43: 73.95 | M43: =IF(M42="","",L43+(M42-L42)/(N42-L42)*(N43-L43)) ->  | N43: 89.42 | O43: =IF(O42="","",N43+(O42-N42)/(P42-N42)*(P43-N43)) ->  | P43: 106.14 | Q43: =IF(Q42="","",P43+(Q42-P42)/(R42-P42)*(R43-P43)) ->  | R43: 124.18
E44: 110 | F44: 7 | G44: FAD | H44: 6.7 | I44: =IF(AND(Calculator!$N$6=Tabelle2!$E44,Calculator!$N$7=Tabelle2!$F44,H44<=Calculator!$N$8,Tabelle2!J44>=Calculator!$N$8),Calculator!$N$8,"") ->  | J44: 9.31 | K44: =IF(AND(Calculator!$N$6=Tabelle2!$E44,Calculator!$N$7=Tabelle2!$F44,J44<=Calculator!$N$8,Tabelle2!L44>=Calculator!$N$8),Calculator!$N$8,"") ->  | L44: 11.91 | M44: =IF(AND(Calculator!$N$6=Tabelle2!$E44,Calculator!$N$7=Tabelle2!$F44,L44<=Calculator!$N$8,Tabelle2!N44>=Calculator!$N$8),Calculator!$N$8,"") ->  | N44: 14.52 | O44: =IF(AND(Calculator!$N$6=Tabelle2!$E44,Calculator!$N$7=Tabelle2!$F44,N44<=Calculator!$N$8,Tabelle2!P44>=Calculator!$N$8),Calculator!$N$8,"") ->  | P44: 17.13 | Q44: =IF(AND(Calculator!$N$6=Tabelle2!$E44,Calculator!$N$7=Tabelle2!$F44,P44<=Calculator!$N$8,Tabelle2!R44>=Calculator!$N$8),Calculator!$N$8,"") ->  | R44: 19.74
E45: 110 | F45: 7 | G45: Total Input Power | H45: 51.24 | I45: =IF(I44="","",H45+(I44-H44)/(J44-H44)*(J45-H45)) ->  | J45: 63.9 | K45: =IF(K44="","",J45+(K44-J44)/(L44-J44)*(L45-J45)) ->  | L45: 77.5 | M45: =IF(M44="","",L45+(M44-L44)/(N44-L44)*(N45-L45)) ->  | N45: 92.19 | O45: =IF(O44="","",N45+(O44-N44)/(P44-N44)*(P45-N45)) ->  | P45: 107.74 | Q45: =IF(Q44="","",P45+(Q44-P44)/(R44-P44)*(R45-P45)) ->  | R45: 124.34
E46: 110 | F46: 7.5 | G46: FAD | H46: 6.7 | I46: =IF(AND(Calculator!$N$6=Tabelle2!$E46,Calculator!$N$7=Tabelle2!$F46,H46<=Calculator!$N$8,Tabelle2!J46>=Calculator!$N$8),Calculator!$N$8,"") ->  | J46: 9.19 | K46: =IF(AND(Calculator!$N$6=Tabelle2!$E46,Calculator!$N$7=Tabelle2!$F46,J46<=Calculator!$N$8,Tabelle2!L46>=Calculator!$N$8),Calculator!$N$8,"") ->  | L46: 11.67 | M46: =IF(AND(Calculator!$N$6=Tabelle2!$E46,Calculator!$N$7=Tabelle2!$F46,L46<=Calculator!$N$8,Tabelle2!N46>=Calculator!$N$8),Calculator!$N$8,"") ->  | N46: 14.16 | O46: =IF(AND(Calculator!$N$6=Tabelle2!$E46,Calculator!$N$7=Tabelle2!$F46,N46<=Calculator!$N$8,Tabelle2!P46>=Calculator!$N$8),Calculator!$N$8,"") ->  | P46: 16.65 | Q46: =IF(AND(Calculator!$N$6=Tabelle2!$E46,Calculator!$N$7=Tabelle2!$F46,P46<=Calculator!$N$8,Tabelle2!R46>=Calculator!$N$8),Calculator!$N$8,"") ->  | R46: 19.13
E47: 110 | F47: 7.5 | G47: Total Input Power | H47: 53.51 | I47: =IF(I46="","",H47+(I46-H46)/(J46-H46)*(J47-H47)) ->  | J47: 65.92 | K47: =IF(K46="","",J47+(K46-J46)/(L46-J46)*(L47-J47)) ->  | L47: 79.19 | M47: =IF(M46="","",L47+(M46-L46)/(N46-L46)*(N47-L47)) ->  | N47: 93.43 | O47: =IF(O46="","",N47+(O46-N46)/(P46-N46)*(P47-N47)) ->  | P47: 108.39 | Q47: =IF(Q46="","",P47+(Q46-P46)/(R46-P46)*(R47-P47)) ->  | R47: 124.28
E48: 110 | F48: 8 | G48: FAD | H48: 6.7 | I48: =IF(AND(Calculator!$N$6=Tabelle2!$E48,Calculator!$N$7=Tabelle2!$F48,H48<=Calculator!$N$8,Tabelle2!J48>=Calculator!$N$8),Calculator!$N$8,"") ->  | J48: 9.06 | K48: =IF(AND(Calculator!$N$6=Tabelle2!$E48,Calculator!$N$7=Tabelle2!$F48,J48<=Calculator!$N$8,Tabelle2!L48>=Calculator!$N$8),Calculator!$N$8,"") ->  | L48: 11.43 | M48: =IF(AND(Calculator!$N$6=Tabelle2!$E48,Calculator!$N$7=Tabelle2!$F48,L48<=Calculator!$N$8,Tabelle2!N48>=Calculator!$N$8),Calculator!$N$8,"") ->  | N48: 13.79 | O48: =IF(AND(Calculator!$N$6=Tabelle2!$E48,Calculator!$N$7=Tabelle2!$F48,N48<=Calculator!$N$8,Tabelle2!P48>=Calculator!$N$8),Calculator!$N$8,"") ->  | P48: 16.15 | Q48: =IF(AND(Calculator!$N$6=Tabelle2!$E48,Calculator!$N$7=Tabelle2!$F48,P48<=Calculator!$N$8,Tabelle2!R48>=Calculator!$N$8),Calculator!$N$8,"") ->  | R48: 18.52
E49: 110 | F49: 8 | G49: Total Input Power | H49: 55.87 | I49: =IF(I48="","",H49+(I48-H48)/(J48-H48)*(J49-H49)) ->  | J49: 67.96 | K49: =IF(K48="","",J49+(K48-J48)/(L48-J48)*(L49-J49)) ->  | L49: 80.84 | M49: =IF(M48="","",L49+(M48-L48)/(N48-L48)*(N49-L49)) ->  | N49: 94.59 | O49: =IF(O48="","",N49+(O48-N48)/(P48-N48)*(P49-N49)) ->  | P49: 108.94 | Q49: =IF(Q48="","",P49+(Q48-P48)/(R48-P48)*(R49-P49)) ->  | R49: 124.14
E50: 110 | F50: 8.5 | G50: FAD | H50: 6.95 | I50: =IF(AND(Calculator!$N$6=Tabelle2!$E50,Calculator!$N$7=Tabelle2!$F50,H50<=Calculator!$N$8,Tabelle2!J50>=Calculator!$N$8),Calculator!$N$8,"") ->  | J50: 9.15 | K50: =IF(AND(Calculator!$N$6=Tabelle2!$E50,Calculator!$N$7=Tabelle2!$F50,J50<=Calculator!$N$8,Tabelle2!L50>=Calculator!$N$8),Calculator!$N$8,"") ->  | L50: 11.35 | M50: =IF(AND(Calculator!$N$6=Tabelle2!$E50,Calculator!$N$7=Tabelle2!$F50,L50<=Calculator!$N$8,Tabelle2!N50>=Calculator!$N$8),Calculator!$N$8,"") ->  | N50: 13.56 | O50: =IF(AND(Calculator!$N$6=Tabelle2!$E50,Calculator!$N$7=Tabelle2!$F50,N50<=Calculator!$N$8,Tabelle2!P50>=Calculator!$N$8),Calculator!$N$8,"") ->  | P50: 15.76 | Q50: =IF(AND(Calculator!$N$6=Tabelle2!$E50,Calculator!$N$7=Tabelle2!$F50,P50<=Calculator!$N$8,Tabelle2!R50>=Calculator!$N$8),Calculator!$N$8,"") ->  | R50: 17.96
E51: 110 | F51: 8.5 | G51: Total Input Power | H51: 59.64 | I51: =IF(I50="","",H51+(I50-H50)/(J50-H50)*(J51-H51)) ->  | J51: 71.19 | K51: =IF(K50="","",J51+(K50-J50)/(L50-J50)*(L51-J51)) ->  | L51: 83.46 | M51: =IF(M50="","",L51+(M50-L50)/(N50-L50)*(N51-L51)) ->  | N51: 96.5 | O51: =IF(O50="","",N51+(O50-N50)/(P50-N50)*(P51-N51)) ->  | P51: 110 | Q51: =IF(Q50="","",P51+(Q50-P50)/(R50-P50)*(R51-P51)) ->  | R51: 124.3
E52: 110 | F52: 9 | G52: FAD | H52: 7.2 | I52: =IF(AND(Calculator!$N$6=Tabelle2!$E52,Calculator!$N$7=Tabelle2!$F52,H52<=Calculator!$N$8,Tabelle2!J52>=Calculator!$N$8),Calculator!$N$8,"") ->  | J52: 9.24 | K52: =IF(AND(Calculator!$N$6=Tabelle2!$E52,Calculator!$N$7=Tabelle2!$F52,J52<=Calculator!$N$8,Tabelle2!L52>=Calculator!$N$8),Calculator!$N$8,"") ->  | L52: 11.28 | M52: =IF(AND(Calculator!$N$6=Tabelle2!$E52,Calculator!$N$7=Tabelle2!$F52,L52<=Calculator!$N$8,Tabelle2!N52>=Calculator!$N$8),Calculator!$N$8,"") ->  | N52: 13.32 | O52: =IF(AND(Calculator!$N$6=Tabelle2!$E52,Calculator!$N$7=Tabelle2!$F52,N52<=Calculator!$N$8,Tabelle2!P52>=Calculator!$N$8),Calculator!$N$8,"") ->  | P52: 15.36 | Q52: =IF(AND(Calculator!$N$6=Tabelle2!$E52,Calculator!$N$7=Tabelle2!$F52,P52<=Calculator!$N$8,Tabelle2!R52>=Calculator!$N$8),Calculator!$N$8,"") ->  | R52: 17.4
E53: 110 | F53: 9 | G53: Total Input Power | H53: 63.58 | I53: =IF(I52="","",H53+(I52-H52)/(J52-H52)*(J53-H53)) ->  | J53: 74.51 | K53: =IF(K52="","",J53+(K52-J52)/(L52-J52)*(L53-J53)) ->  | L53: 86.1 | M53: =IF(M52="","",L53+(M52-L52)/(N52-L52)*(N53-L53)) ->  | N53: 98.36 | O53: =IF(O52="","",N53+(O52-N52)/(P52-N52)*(P53-N53)) ->  | P53: 110.99 | Q53: =IF(Q52="","",P53+(Q52-P52)/(R52-P52)*(R53-P53)) ->  | R53: 124.38
E54: 110 | F54: 10 | G54: FAD | H54: 7.7 | I54: =IF(AND(Calculator!$N$6=Tabelle2!$E54,Calculator!$N$7=Tabelle2!$F54,H54<=Calculator!$N$8,Tabelle2!J54>=Calculator!$N$8),Calculator!$N$8,"") ->  | J54: 9.41 | K54: =IF(AND(Calculator!$N$6=Tabelle2!$E54,Calculator!$N$7=Tabelle2!$F54,J54<=Calculator!$N$8,Tabelle2!L54>=Calculator!$N$8),Calculator!$N$8,"") ->  | L54: 11.13 | M54: =IF(AND(Calculator!$N$6=Tabelle2!$E54,Calculator!$N$7=Tabelle2!$F54,L54<=Calculator!$N$8,Tabelle2!N54>=Calculator!$N$8),Calculator!$N$8,"") ->  | N54: 12.84 | O54: =IF(AND(Calculator!$N$6=Tabelle2!$E54,Calculator!$N$7=Tabelle2!$F54,N54<=Calculator!$N$8,Tabelle2!P54>=Calculator!$N$8),Calculator!$N$8,"") ->  | P54: 14.56 | Q54: =IF(AND(Calculator!$N$6=Tabelle2!$E54,Calculator!$N$7=Tabelle2!$F54,P54<=Calculator!$N$8,Tabelle2!R54>=Calculator!$N$8),Calculator!$N$8,"") ->  | R54: 16.27
E55: 110 | F55: 10 | G55: Total Input Power | H55: 71.77 | I55: =IF(I54="","",H55+(I54-H54)/(J54-H54)*(J55-H55)) ->  | J55: 81.33 | K55: =IF(K54="","",J55+(K54-J54)/(L54-J54)*(L55-J55)) ->  | L55: 91.43 | M55: =IF(M54="","",L55+(M54-L54)/(N54-L54)*(N55-L55)) ->  | N55: 101.97 | O55: =IF(O54="","",N55+(O54-N54)/(P54-N54)*(P55-N55)) ->  | P55: 112.77 | Q55: =IF(Q54="","",P55+(Q54-P54)/(R54-P54)*(R55-P55)) ->  | R55: 124.24
E56: 90 | F56: 4 | G56: FAD | H56: 6.7 | I56: =IF(AND(Calculator!$N$6=Tabelle2!$E56,Calculator!$N$7=Tabelle2!$F56,H56<=Calculator!$N$8,Tabelle2!J56>=Calculator!$N$8),Calculator!$N$8,"") ->  | J56: 9.27 | K56: =IF(AND(Calculator!$N$6=Tabelle2!$E56,Calculator!$N$7=Tabelle2!$F56,J56<=Calculator!$N$8,Tabelle2!L56>=Calculator!$N$8),Calculator!$N$8,"") ->  | L56: 11.85 | M56: =IF(AND(Calculator!$N$6=Tabelle2!$E56,Calculator!$N$7=Tabelle2!$F56,L56<=Calculator!$N$8,Tabelle2!N56>=Calculator!$N$8),Calculator!$N$8,"") ->  | N56: 14.42 | O56: =IF(AND(Calculator!$N$6=Tabelle2!$E56,Calculator!$N$7=Tabelle2!$F56,N56<=Calculator!$N$8,Tabelle2!P56>=Calculator!$N$8),Calculator!$N$8,"") ->  | P56: 16.99 | Q56: =IF(AND(Calculator!$N$6=Tabelle2!$E56,Calculator!$N$7=Tabelle2!$F56,P56<=Calculator!$N$8,Tabelle2!R56>=Calculator!$N$8),Calculator!$N$8,"") ->  | R56: 19.56
E57: 90 | F57: 4 | G57: Total Input Power | H57: 37.92 | I57: =IF(I56="","",H57+(I56-H56)/(J56-H56)*(J57-H57)) ->  | J57: 48.3 | K57: =IF(K56="","",J57+(K56-J56)/(L56-J56)*(L57-J57)) ->  | L57: 59.6 | M57: =IF(M56="","",L57+(M56-L56)/(N56-L56)*(N57-L57)) ->  | N57: 72.04 | O57: =IF(O56="","",N57+(O56-N56)/(P56-N56)*(P57-N57)) ->  | P57: 85.7 | Q57: =IF(Q56="","",P57+(Q56-P56)/(R56-P56)*(R57-P57)) ->  | R57: 100.69
E58: 90 | F58: 5 | G58: FAD | H58: 6.7 | I58: =IF(AND(Calculator!$N$6=Tabelle2!$E58,Calculator!$N$7=Tabelle2!$F58,H58<=Calculator!$N$8,Tabelle2!J58>=Calculator!$N$8),Calculator!$N$8,"") ->  | J58: 9.04 | K58: =IF(AND(Calculator!$N$6=Tabelle2!$E58,Calculator!$N$7=Tabelle2!$F58,J58<=Calculator!$N$8,Tabelle2!L58>=Calculator!$N$8),Calculator!$N$8,"") ->  | L58: 11.39 | M58: =IF(AND(Calculator!$N$6=Tabelle2!$E58,Calculator!$N$7=Tabelle2!$F58,L58<=Calculator!$N$8,Tabelle2!N58>=Calculator!$N$8),Calculator!$N$8,"") ->  | N58: 13.73 | O58: =IF(AND(Calculator!$N$6=Tabelle2!$E58,Calculator!$N$7=Tabelle2!$F58,N58<=Calculator!$N$8,Tabelle2!P58>=Calculator!$N$8),Calculator!$N$8,"") ->  | P58: 16.08 | Q58: =IF(AND(Calculator!$N$6=Tabelle2!$E58,Calculator!$N$7=Tabelle2!$F58,P58<=Calculator!$N$8,Tabelle2!R58>=Calculator!$N$8),Calculator!$N$8,"") ->  | R58: 18.42
E59: 90 | F59: 5 | G59: Total Input Power | H59: 42.36 | I59: =IF(I58="","",H59+(I58-H58)/(J58-H58)*(J59-H59)) ->  | J59: 52.4 | K59: =IF(K58="","",J59+(K58-J58)/(L58-J58)*(L59-J59)) ->  | L59: 63.16 | M59: =IF(M58="","",L59+(M58-L58)/(N58-L58)*(N59-L59)) ->  | N59: 74.84 | O59: =IF(O58="","",N59+(O58-N58)/(P58-N58)*(P59-N59)) ->  | P59: 87.47 | Q59: =IF(Q58="","",P59+(Q58-P58)/(R58-P58)*(R59-P59)) ->  | R59: 101.11
E60: 90 | F60: 6 | G60: FAD | H60: 6.7 | I60: =IF(AND(Calculator!$N$6=Tabelle2!$E60,Calculator!$N$7=Tabelle2!$F60,H60<=Calculator!$N$8,Tabelle2!J60>=Calculator!$N$8),Calculator!$N$8,"") ->  | J60: 8.81 | K60: =IF(AND(Calculator!$N$6=Tabelle2!$E60,Calculator!$N$7=Tabelle2!$F60,J60<=Calculator!$N$8,Tabelle2!L60>=Calculator!$N$8),Calculator!$N$8,"") ->  | L60: 10.91 | M60: =IF(AND(Calculator!$N$6=Tabelle2!$E60,Calculator!$N$7=Tabelle2!$F60,L60<=Calculator!$N$8,Tabelle2!N60>=Calculator!$N$8),Calculator!$N$8,"") ->  | N60: 13.02 | O60: =IF(AND(Calculator!$N$6=Tabelle2!$E60,Calculator!$N$7=Tabelle2!$F60,N60<=Calculator!$N$8,Tabelle2!P60>=Calculator!$N$8),Calculator!$N$8,"") ->  | P60: 15.12 | Q60: =IF(AND(Calculator!$N$6=Tabelle2!$E60,Calculator!$N$7=Tabelle2!$F60,P60<=Calculator!$N$8,Tabelle2!R60>=Calculator!$N$8),Calculator!$N$8,"") ->  | R60: 17.23
E61: 90 | F61: 6 | G61: Total Input Power | H61: 46.81 | I61: =IF(I60="","",H61+(I60-H60)/(J60-H60)*(J61-H61)) ->  | J61: 56.36 | K61: =IF(K60="","",J61+(K60-J60)/(L60-J60)*(L61-J61)) ->  | L61: 66.48 | M61: =IF(M60="","",L61+(M60-L60)/(N60-L60)*(N61-L61)) ->  | N61: 77.31 | O61: =IF(O60="","",N61+(O60-N60)/(P60-N60)*(P61-N61)) ->  | P61: 88.87 | Q61: =IF(Q60="","",P61+(Q60-P60)/(R60-P60)*(R61-P61)) ->  | R61: 101.15
E62: 90 | F62: 7 | G62: FAD | H62: 6.7 | I62: =IF(AND(Calculator!$N$6=Tabelle2!$E62,Calculator!$N$7=Tabelle2!$F62,H62<=Calculator!$N$8,Tabelle2!J62>=Calculator!$N$8),Calculator!$N$8,"") ->  | J62: 8.57 | K62: =IF(AND(Calculator!$N$6=Tabelle2!$E62,Calculator!$N$7=Tabelle2!$F62,J62<=Calculator!$N$8,Tabelle2!L62>=Calculator!$N$8),Calculator!$N$8,"") ->  | L62: 10.45 | M62: =IF(AND(Calculator!$N$6=Tabelle2!$E62,Calculator!$N$7=Tabelle2!$F62,L62<=Calculator!$N$8,Tabelle2!N62>=Calculator!$N$8),Calculator!$N$8,"") ->  | N62: 12.32 | O62: =IF(AND(Calculator!$N$6=Tabelle2!$E62,Calculator!$N$7=Tabelle2!$F62,N62<=Calculator!$N$8,Tabelle2!P62>=Calculator!$N$8),Calculator!$N$8,"") ->  | P62: 14.2 | Q62: =IF(AND(Calculator!$N$6=Tabelle2!$E62,Calculator!$N$7=Tabelle2!$F62,P62<=Calculator!$N$8,Tabelle2!R62>=Calculator!$N$8),Calculator!$N$8,"") ->  | R62: 16.07
E63: 90 | F63: 7 | G63: Total Input Power | H63: 51.24 | I63: =IF(I62="","",H63+(I62-H62)/(J62-H62)*(J63-H63)) ->  | J63: 60.26 | K63: =IF(K62="","",J63+(K62-J62)/(L62-J62)*(L63-J63)) ->  | L63: 69.72 | M63: =IF(M62="","",L63+(M62-L62)/(N62-L62)*(N63-L63)) ->  | N63: 79.72 | O63: =IF(O62="","",N63+(O62-N62)/(P62-N62)*(P63-N63)) ->  | P63: 90.29 | Q63: =IF(Q62="","",P63+(Q62-P62)/(R62-P62)*(R63-P63)) ->  | R63: 101.35
E64: 90 | F64: 7.5 | G64: FAD | H64: 6.7 | I64: =IF(AND(Calculator!$N$6=Tabelle2!$E64,Calculator!$N$7=Tabelle2!$F64,H64<=Calculator!$N$8,Tabelle2!J64>=Calculator!$N$8),Calculator!$N$8,"") ->  | J64: 8.46 | K64: =IF(AND(Calculator!$N$6=Tabelle2!$E64,Calculator!$N$7=Tabelle2!$F64,J64<=Calculator!$N$8,Tabelle2!L64>=Calculator!$N$8),Calculator!$N$8,"") ->  | L64: 10.21 | M64: =IF(AND(Calculator!$N$6=Tabelle2!$E64,Calculator!$N$7=Tabelle2!$F64,L64<=Calculator!$N$8,Tabelle2!N64>=Calculator!$N$8),Calculator!$N$8,"") ->  | N64: 11.97 | O64: =IF(AND(Calculator!$N$6=Tabelle2!$E64,Calculator!$N$7=Tabelle2!$F64,N64<=Calculator!$N$8,Tabelle2!P64>=Calculator!$N$8),Calculator!$N$8,"") ->  | P64: 13.72 | Q64: =IF(AND(Calculator!$N$6=Tabelle2!$E64,Calculator!$N$7=Tabelle2!$F64,P64<=Calculator!$N$8,Tabelle2!R64>=Calculator!$N$8),Calculator!$N$8,"") ->  | R64: 15.48
E65: 90 | F65: 7.5 | G65: Total Input Power | H65: 53.51 | I65: =IF(I64="","",H65+(I64-H64)/(J64-H64)*(J65-H65)) ->  | J65: 62.2 | K65: =IF(K64="","",J65+(K64-J64)/(L64-J64)*(L65-J65)) ->  | L65: 71.26 | M65: =IF(M64="","",L65+(M64-L64)/(N64-L64)*(N65-L65)) ->  | N65: 80.81 | O65: =IF(O64="","",N65+(O64-N64)/(P64-N64)*(P65-N65)) ->  | P65: 90.85 | Q65: =IF(Q64="","",P65+(Q64-P64)/(R64-P64)*(R65-P65)) ->  | R65: 101.29
E66: 90 | F66: 8 | G66: FAD | H66: 6.7 | I66: =IF(AND(Calculator!$N$6=Tabelle2!$E66,Calculator!$N$7=Tabelle2!$F66,H66<=Calculator!$N$8,Tabelle2!J66>=Calculator!$N$8),Calculator!$N$8,"") ->  | J66: 8.34 | K66: =IF(AND(Calculator!$N$6=Tabelle2!$E66,Calculator!$N$7=Tabelle2!$F66,J66<=Calculator!$N$8,Tabelle2!L66>=Calculator!$N$8),Calculator!$N$8,"") ->  | L66: 9.97 | M66: =IF(AND(Calculator!$N$6=Tabelle2!$E66,Calculator!$N$7=Tabelle2!$F66,L66<=Calculator!$N$8,Tabelle2!N66>=Calculator!$N$8),Calculator!$N$8,"") ->  | N66: 11.61 | O66: =IF(AND(Calculator!$N$6=Tabelle2!$E66,Calculator!$N$7=Tabelle2!$F66,N66<=Calculator!$N$8,Tabelle2!P66>=Calculator!$N$8),Calculator!$N$8,"") ->  | P66: 13.24 | Q66: =IF(AND(Calculator!$N$6=Tabelle2!$E66,Calculator!$N$7=Tabelle2!$F66,P66<=Calculator!$N$8,Tabelle2!R66>=Calculator!$N$8),Calculator!$N$8,"") ->  | R66: 14.88
E67: 90 | F67: 8 | G67: Total Input Power | H67: 55.87 | I67: =IF(I66="","",H67+(I66-H66)/(J66-H66)*(J67-H67)) ->  | J67: 64.17 | K67: =IF(K66="","",J67+(K66-J66)/(L66-J66)*(L67-J67)) ->  | L67: 72.8 | M67: =IF(M66="","",L67+(M66-L66)/(N66-L66)*(N67-L67)) ->  | N67: 81.85 | O67: =IF(O66="","",N67+(O66-N66)/(P66-N66)*(P67-N67)) ->  | P67: 91.33 | Q67: =IF(Q66="","",P67+(Q66-P66)/(R66-P66)*(R67-P67)) ->  | R67: 101.14
E68: 90 | F68: 8.5 | G68: FAD | H68: 6.95 | I68: =IF(AND(Calculator!$N$6=Tabelle2!$E68,Calculator!$N$7=Tabelle2!$F68,H68<=Calculator!$N$8,Tabelle2!J68>=Calculator!$N$8),Calculator!$N$8,"") ->  | J68: 8.43 | K68: =IF(AND(Calculator!$N$6=Tabelle2!$E68,Calculator!$N$7=Tabelle2!$F68,J68<=Calculator!$N$8,Tabelle2!L68>=Calculator!$N$8),Calculator!$N$8,"") ->  | L68: 9.91 | M68: =IF(AND(Calculator!$N$6=Tabelle2!$E68,Calculator!$N$7=Tabelle2!$F68,L68<=Calculator!$N$8,Tabelle2!N68>=Calculator!$N$8),Calculator!$N$8,"") ->  | N68: 11.39 | O68: =IF(AND(Calculator!$N$6=Tabelle2!$E68,Calculator!$N$7=Tabelle2!$F68,N68<=Calculator!$N$8,Tabelle2!P68>=Calculator!$N$8),Calculator!$N$8,"") ->  | P68: 12.86 | Q68: =IF(AND(Calculator!$N$6=Tabelle2!$E68,Calculator!$N$7=Tabelle2!$F68,P68<=Calculator!$N$8,Tabelle2!R68>=Calculator!$N$8),Calculator!$N$8,"") ->  | R68: 14.34
E69: 90 | F69: 8.5 | G69: Total Input Power | H69: 59.64 | I69: =IF(I68="","",H69+(I68-H68)/(J68-H68)*(J69-H69)) ->  | J69: 67.33 | K69: =IF(K68="","",J69+(K68-J68)/(L68-J68)*(L69-J69)) ->  | L69: 75.31 | M69: =IF(M68="","",L69+(M68-L68)/(N68-L68)*(N69-L69)) ->  | N69: 83.64 | O69: =IF(O68="","",N69+(O68-N68)/(P68-N68)*(P69-N69)) ->  | P69: 92.34 | Q69: =IF(Q68="","",P69+(Q68-P68)/(R68-P68)*(R69-P69)) ->  | R69: 101.29
E70: 90 | F70: 9 | G70: FAD | H70: 7.2 | I70: =IF(AND(Calculator!$N$6=Tabelle2!$E70,Calculator!$N$7=Tabelle2!$F70,H70<=Calculator!$N$8,Tabelle2!J70>=Calculator!$N$8),Calculator!$N$8,"") ->  | J70: 8.52 | K70: =IF(AND(Calculator!$N$6=Tabelle2!$E70,Calculator!$N$7=Tabelle2!$F70,J70<=Calculator!$N$8,Tabelle2!L70>=Calculator!$N$8),Calculator!$N$8,"") ->  | L70: 9.84 | M70: =IF(AND(Calculator!$N$6=Tabelle2!$E70,Calculator!$N$7=Tabelle2!$F70,L70<=Calculator!$N$8,Tabelle2!N70>=Calculator!$N$8),Calculator!$N$8,"") ->  | N70: 11.16 | O70: =IF(AND(Calculator!$N$6=Tabelle2!$E70,Calculator!$N$7=Tabelle2!$F70,N70<=Calculator!$N$8,Tabelle2!P70>=Calculator!$N$8),Calculator!$N$8,"") ->  | P70: 12.49 | Q70: =IF(AND(Calculator!$N$6=Tabelle2!$E70,Calculator!$N$7=Tabelle2!$F70,P70<=Calculator!$N$8,Tabelle2!R70>=Calculator!$N$8),Calculator!$N$8,"") ->  | R70: 13.81
E71: 90 | F71: 9 | G71: Total Input Power | H71: 63.58 | I71: =IF(I70="","",H71+(I70-H70)/(J70-H70)*(J71-H71)) ->  | J71: 70.59 | K71: =IF(K70="","",J71+(K70-J70)/(L70-J70)*(L71-J71)) ->  | L71: 77.86 | M71: =IF(M70="","",L71+(M70-L70)/(N70-L70)*(N71-L71)) ->  | N71: 85.43 | O71: =IF(O70="","",N71+(O70-N70)/(P70-N70)*(P71-N71)) ->  | P71: 93.29 | Q71: =IF(Q70="","",P71+(Q70-P70)/(R70-P70)*(R71-P71)) ->  | R71: 101.36
E72: 90 | F72: 10 | G72: FAD | H72: 7.7 | I72: =IF(AND(Calculator!$N$6=Tabelle2!$E72,Calculator!$N$7=Tabelle2!$F72,H72<=Calculator!$N$8,Tabelle2!J72>=Calculator!$N$8),Calculator!$N$8,"") ->  | J72: 8.7 | K72: =IF(AND(Calculator!$N$6=Tabelle2!$E72,Calculator!$N$7=Tabelle2!$F72,J72<=Calculator!$N$8,Tabelle2!L72>=Calculator!$N$8),Calculator!$N$8,"") ->  | L72: 9.71 | M72: =IF(AND(Calculator!$N$6=Tabelle2!$E72,Calculator!$N$7=Tabelle2!$F72,L72<=Calculator!$N$8,Tabelle2!N72>=Calculator!$N$8),Calculator!$N$8,"") ->  | N72: 10.71 | O72: =IF(AND(Calculator!$N$6=Tabelle2!$E72,Calculator!$N$7=Tabelle2!$F72,N72<=Calculator!$N$8,Tabelle2!P72>=Calculator!$N$8),Calculator!$N$8,"") ->  | P72: 11.72 | Q72: =IF(AND(Calculator!$N$6=Tabelle2!$E72,Calculator!$N$7=Tabelle2!$F72,P72<=Calculator!$N$8,Tabelle2!R72>=Calculator!$N$8),Calculator!$N$8,"") ->  | R72: 12.72
E73: 90 | F73: 10 | G73: Total Input Power | H73: 71.77 | I73: =IF(I72="","",H73+(I72-H72)/(J72-H72)*(J73-H73)) ->  | J73: 77.31 | K73: =IF(K72="","",J73+(K72-J72)/(L72-J72)*(L73-J73)) ->  | L73: 83.03 | M73: =IF(M72="","",L73+(M72-L72)/(N72-L72)*(N73-L73)) ->  | N73: 88.94 | O73: =IF(O72="","",N73+(O72-N72)/(P72-N72)*(P73-N73)) ->  | P73: 95.02 | Q73: =IF(Q72="","",P73+(Q72-P72)/(R72-P72)*(R73-P73)) ->  | R73: 101.23
E74: 75 | F74: 4 | G74: FAD | H74: 6.7 | I74: =IF(AND(Calculator!$N$6=Tabelle2!$E74,Calculator!$N$7=Tabelle2!$F74,H74<=Calculator!$N$8,Tabelle2!J74>=Calculator!$N$8),Calculator!$N$8,"") ->  | J74: 8.67 | K74: =IF(AND(Calculator!$N$6=Tabelle2!$E74,Calculator!$N$7=Tabelle2!$F74,J74<=Calculator!$N$8,Tabelle2!L74>=Calculator!$N$8),Calculator!$N$8,"") ->  | L74: 10.65 | M74: =IF(AND(Calculator!$N$6=Tabelle2!$E74,Calculator!$N$7=Tabelle2!$F74,L74<=Calculator!$N$8,Tabelle2!N74>=Calculator!$N$8),Calculator!$N$8,"") ->  | N74: 12.62 | O74: =IF(AND(Calculator!$N$6=Tabelle2!$E74,Calculator!$N$7=Tabelle2!$F74,N74<=Calculator!$N$8,Tabelle2!P74>=Calculator!$N$8),Calculator!$N$8,"") ->  | P74: 14.6 | Q74: =IF(AND(Calculator!$N$6=Tabelle2!$E74,Calculator!$N$7=Tabelle2!$F74,P74<=Calculator!$N$8,Tabelle2!R74>=Calculator!$N$8),Calculator!$N$8,"") ->  | R74: 16.57
E75: 75 | F75: 4 | G75: Total Input Power | H75: 37.92 | I75: =IF(I74="","",H75+(I74-H74)/(J74-H74)*(J75-H75)) ->  | J75: 45.83 | K75: =IF(K74="","",J75+(K74-J74)/(L74-J74)*(L75-J75)) ->  | L75: 54.21 | M75: =IF(M74="","",L75+(M74-L74)/(N74-L74)*(N75-L75)) ->  | N75: 63.25 | O75: =IF(O74="","",N75+(O74-N74)/(P74-N74)*(P75-N75)) ->  | P75: 72.96 | Q75: =IF(Q74="","",P75+(Q74-P74)/(R74-P74)*(R75-P75)) ->  | R75: 83.4
E76: 75 | F76: 5 | G76: FAD | H76: 6.7 | I76: =IF(AND(Calculator!$N$6=Tabelle2!$E76,Calculator!$N$7=Tabelle2!$F76,H76<=Calculator!$N$8,Tabelle2!J76>=Calculator!$N$8),Calculator!$N$8,"") ->  | J76: 8.44 | K76: =IF(AND(Calculator!$N$6=Tabelle2!$E76,Calculator!$N$7=Tabelle2!$F76,J76<=Calculator!$N$8,Tabelle2!L76>=Calculator!$N$8),Calculator!$N$8,"") ->  | L76: 10.18 | M76: =IF(AND(Calculator!$N$6=Tabelle2!$E76,Calculator!$N$7=Tabelle2!$F76,L76<=Calculator!$N$8,Tabelle2!N76>=Calculator!$N$8),Calculator!$N$8,"") ->  | N76: 11.93 | O76: =IF(AND(Calculator!$N$6=Tabelle2!$E76,Calculator!$N$7=Tabelle2!$F76,N76<=Calculator!$N$8,Tabelle2!P76>=Calculator!$N$8),Calculator!$N$8,"") ->  | P76: 13.67 | Q76: =IF(AND(Calculator!$N$6=Tabelle2!$E76,Calculator!$N$7=Tabelle2!$F76,P76<=Calculator!$N$8,Tabelle2!R76>=Calculator!$N$8),Calculator!$N$8,"") ->  | R76: 15.41
E77: 75 | F77: 5 | G77: Total Input Power | H77: 42.36 | I77: =IF(I76="","",H77+(I76-H76)/(J76-H76)*(J77-H77)) ->  | J77: 49.77 | K77: =IF(K76="","",J77+(K76-J76)/(L76-J76)*(L77-J77)) ->  | L77: 57.52 | M77: =IF(M76="","",L77+(M76-L76)/(N76-L76)*(N77-L77)) ->  | N77: 65.76 | O77: =IF(O76="","",N77+(O76-N76)/(P76-N76)*(P77-N77)) ->  | P77: 74.5 | Q77: =IF(Q76="","",P77+(Q76-P76)/(R76-P76)*(R77-P77)) ->  | R77: 83.78
E78: 75 | F78: 6 | G78: FAD | H78: 6.7 | I78: =IF(AND(Calculator!$N$6=Tabelle2!$E78,Calculator!$N$7=Tabelle2!$F78,H78<=Calculator!$N$8,Tabelle2!J78>=Calculator!$N$8),Calculator!$N$8,"") ->  | J78: 8.2 | K78: =IF(AND(Calculator!$N$6=Tabelle2!$E78,Calculator!$N$7=Tabelle2!$F78,J78<=Calculator!$N$8,Tabelle2!L78>=Calculator!$N$8),Calculator!$N$8,"") ->  | L78: 9.7 | M78: =IF(AND(Calculator!$N$6=Tabelle2!$E78,Calculator!$N$7=Tabelle2!$F78,L78<=Calculator!$N$8,Tabelle2!N78>=Calculator!$N$8),Calculator!$N$8,"") ->  | N78: 11.2 | O78: =IF(AND(Calculator!$N$6=Tabelle2!$E78,Calculator!$N$7=Tabelle2!$F78,N78<=Calculator!$N$8,Tabelle2!P78>=Calculator!$N$8),Calculator!$N$8,"") ->  | P78: 12.7 | Q78: =IF(AND(Calculator!$N$6=Tabelle2!$E78,Calculator!$N$7=Tabelle2!$F78,P78<=Calculator!$N$8,Tabelle2!R78>=Calculator!$N$8),Calculator!$N$8,"") ->  | R78: 14.2
E79: 75 | F79: 6 | G79: Total Input Power | H79: 46.81 | I79: =IF(I78="","",H79+(I78-H78)/(J78-H78)*(J79-H79)) ->  | J79: 53.57 | K79: =IF(K78="","",J79+(K78-J78)/(L78-J78)*(L79-J79)) ->  | L79: 60.57 | M79: =IF(M78="","",L79+(M78-L78)/(N78-L78)*(N79-L79)) ->  | N79: 67.92 | O79: =IF(O78="","",N79+(O78-N78)/(P78-N78)*(P79-N79)) ->  | P79: 75.63 | Q79: =IF(Q78="","",P79+(Q78-P78)/(R78-P78)*(R79-P79)) ->  | R79: 83.71
E80: 75 | F80: 7 | G80: FAD | H80: 6.7 | I80: =IF(AND(Calculator!$N$6=Tabelle2!$E80,Calculator!$N$7=Tabelle2!$F80,H80<=Calculator!$N$8,Tabelle2!J80>=Calculator!$N$8),Calculator!$N$8,"") ->  | J80: 7.98 | K80: =IF(AND(Calculator!$N$6=Tabelle2!$E80,Calculator!$N$7=Tabelle2!$F80,J80<=Calculator!$N$8,Tabelle2!L80>=Calculator!$N$8),Calculator!$N$8,"") ->  | L80: 9.25 | M80: =IF(AND(Calculator!$N$6=Tabelle2!$E80,Calculator!$N$7=Tabelle2!$F80,L80<=Calculator!$N$8,Tabelle2!N80>=Calculator!$N$8),Calculator!$N$8,"") ->  | N80: 10.53 | O80: =IF(AND(Calculator!$N$6=Tabelle2!$E80,Calculator!$N$7=Tabelle2!$F80,N80<=Calculator!$N$8,Tabelle2!P80>=Calculator!$N$8),Calculator!$N$8,"") ->  | P80: 11.81 | Q80: =IF(AND(Calculator!$N$6=Tabelle2!$E80,Calculator!$N$7=Tabelle2!$F80,P80<=Calculator!$N$8,Tabelle2!R80>=Calculator!$N$8),Calculator!$N$8,"") ->  | R80: 13.08
E81: 75 | F81: 7 | G81: Total Input Power | H81: 51.24 | I81: =IF(I80="","",H81+(I80-H80)/(J80-H80)*(J81-H81)) ->  | J81: 57.35 | K81: =IF(K80="","",J81+(K80-J80)/(L80-J80)*(L81-J81)) ->  | L81: 63.63 | M81: =IF(M80="","",L81+(M80-L80)/(N80-L80)*(N81-L81)) ->  | N81: 70.14 | O81: =IF(O80="","",N81+(O80-N80)/(P80-N80)*(P81-N81)) ->  | P81: 76.91 | Q81: =IF(Q80="","",P81+(Q80-P80)/(R80-P80)*(R81-P81)) ->  | R81: 83.95
E82: 75 | F82: 7.5 | G82: FAD | H82: 6.7 | I82: =IF(AND(Calculator!$N$6=Tabelle2!$E82,Calculator!$N$7=Tabelle2!$F82,H82<=Calculator!$N$8,Tabelle2!J82>=Calculator!$N$8),Calculator!$N$8,"") ->  | J82: 7.86 | K82: =IF(AND(Calculator!$N$6=Tabelle2!$E82,Calculator!$N$7=Tabelle2!$F82,J82<=Calculator!$N$8,Tabelle2!L82>=Calculator!$N$8),Calculator!$N$8,"") ->  | L82: 9.03 | M82: =IF(AND(Calculator!$N$6=Tabelle2!$E82,Calculator!$N$7=Tabelle2!$F82,L82<=Calculator!$N$8,Tabelle2!N82>=Calculator!$N$8),Calculator!$N$8,"") ->  | N82: 10.19 | O82: =IF(AND(Calculator!$N$6=Tabelle2!$E82,Calculator!$N$7=Tabelle2!$F82,N82<=Calculator!$N$8,Tabelle2!P82>=Calculator!$N$8),Calculator!$N$8,"") ->  | P82: 11.35 | Q82: =IF(AND(Calculator!$N$6=Tabelle2!$E82,Calculator!$N$7=Tabelle2!$F82,P82<=Calculator!$N$8,Tabelle2!R82>=Calculator!$N$8),Calculator!$N$8,"") ->  | R82: 12.52
E83: 75 | F83: 7.5 | G83: Total Input Power | H83: 53.51 | I83: =IF(I82="","",H83+(I82-H82)/(J82-H82)*(J83-H83)) ->  | J83: 59.24 | K83: =IF(K82="","",J83+(K82-J82)/(L82-J82)*(L83-J83)) ->  | L83: 65.1 | M83: =IF(M82="","",L83+(M82-L82)/(N82-L82)*(N83-L83)) ->  | N83: 71.15 | O83: =IF(O82="","",N83+(O82-N82)/(P82-N82)*(P83-N83)) ->  | P83: 77.43 | Q83: =IF(Q82="","",P83+(Q82-P82)/(R82-P82)*(R83-P83)) ->  | R83: 83.91
E84: 75 | F84: 8 | G84: FAD | H84: 6.7 | I84: =IF(AND(Calculator!$N$6=Tabelle2!$E84,Calculator!$N$7=Tabelle2!$F84,H84<=Calculator!$N$8,Tabelle2!J84>=Calculator!$N$8),Calculator!$N$8,"") ->  | J84: 7.75 | K84: =IF(AND(Calculator!$N$6=Tabelle2!$E84,Calculator!$N$7=Tabelle2!$F84,J84<=Calculator!$N$8,Tabelle2!L84>=Calculator!$N$8),Calculator!$N$8,"") ->  | L84: 8.8 | M84: =IF(AND(Calculator!$N$6=Tabelle2!$E84,Calculator!$N$7=Tabelle2!$F84,L84<=Calculator!$N$8,Tabelle2!N84>=Calculator!$N$8),Calculator!$N$8,"") ->  | N84: 9.85 | O84: =IF(AND(Calculator!$N$6=Tabelle2!$E84,Calculator!$N$7=Tabelle2!$F84,N84<=Calculator!$N$8,Tabelle2!P84>=Calculator!$N$8),Calculator!$N$8,"") ->  | P84: 10.9 | Q84: =IF(AND(Calculator!$N$6=Tabelle2!$E84,Calculator!$N$7=Tabelle2!$F84,P84<=Calculator!$N$8,Tabelle2!R84>=Calculator!$N$8),Calculator!$N$8,"") ->  | R84: 11.95
E85: 75 | F85: 8 | G85: Total Input Power | H85: 55.87 | I85: =IF(I84="","",H85+(I84-H84)/(J84-H84)*(J85-H85)) ->  | J85: 61.17 | K85: =IF(K84="","",J85+(K84-J84)/(L84-J84)*(L85-J85)) ->  | L85: 66.57 | M85: =IF(M84="","",L85+(M84-L84)/(N84-L84)*(N85-L85)) ->  | N85: 72.13 | O85: =IF(O84="","",N85+(O84-N84)/(P84-N84)*(P85-N85)) ->  | P85: 77.87 | Q85: =IF(Q84="","",P85+(Q84-P84)/(R84-P84)*(R85-P85)) ->  | R85: 83.78
E86: 75 | F86: 8.5 | G86: FAD | H86: 6.95 | I86: =IF(AND(Calculator!$N$6=Tabelle2!$E86,Calculator!$N$7=Tabelle2!$F86,H86<=Calculator!$N$8,Tabelle2!J86>=Calculator!$N$8),Calculator!$N$8,"") ->  | J86: 7.85 | K86: =IF(AND(Calculator!$N$6=Tabelle2!$E86,Calculator!$N$7=Tabelle2!$F86,J86<=Calculator!$N$8,Tabelle2!L86>=Calculator!$N$8),Calculator!$N$8,"") ->  | L86: 8.75 | M86: =IF(AND(Calculator!$N$6=Tabelle2!$E86,Calculator!$N$7=Tabelle2!$F86,L86<=Calculator!$N$8,Tabelle2!N86>=Calculator!$N$8),Calculator!$N$8,"") ->  | N86: 9.64 | O86: =IF(AND(Calculator!$N$6=Tabelle2!$E86,Calculator!$N$7=Tabelle2!$F86,N86<=Calculator!$N$8,Tabelle2!P86>=Calculator!$N$8),Calculator!$N$8,"") ->  | P86: 10.54 | Q86: =IF(AND(Calculator!$N$6=Tabelle2!$E86,Calculator!$N$7=Tabelle2!$F86,P86<=Calculator!$N$8,Tabelle2!R86>=Calculator!$N$8),Calculator!$N$8,"") ->  | R86: 11.44
E87: 75 | F87: 8.5 | G87: Total Input Power | H87: 59.64 | I87: =IF(I86="","",H87+(I86-H86)/(J86-H86)*(J87-H87)) ->  | J87: 64.28 | K87: =IF(K86="","",J87+(K86-J86)/(L86-J86)*(L87-J87)) ->  | L87: 69.01 | M87: =IF(M86="","",L87+(M86-L86)/(N86-L86)*(N87-L87)) ->  | N87: 73.86 | O87: =IF(O86="","",N87+(O86-N86)/(P86-N86)*(P87-N87)) ->  | P87: 78.83 | Q87: =IF(Q86="","",P87+(Q86-P86)/(R86-P86)*(R87-P87)) ->  | R87: 83.94
E88: 75 | F88: 9 | G88: FAD | H88: 7.2 | I88: =IF(AND(Calculator!$N$6=Tabelle2!$E88,Calculator!$N$7=Tabelle2!$F88,H88<=Calculator!$N$8,Tabelle2!J88>=Calculator!$N$8),Calculator!$N$8,"") ->  | J88: 7.94 | K88: =IF(AND(Calculator!$N$6=Tabelle2!$E88,Calculator!$N$7=Tabelle2!$F88,J88<=Calculator!$N$8,Tabelle2!L88>=Calculator!$N$8),Calculator!$N$8,"") ->  | L88: 8.69 | M88: =IF(AND(Calculator!$N$6=Tabelle2!$E88,Calculator!$N$7=Tabelle2!$F88,L88<=Calculator!$N$8,Tabelle2!N88>=Calculator!$N$8),Calculator!$N$8,"") ->  | N88: 9.43 | O88: =IF(AND(Calculator!$N$6=Tabelle2!$E88,Calculator!$N$7=Tabelle2!$F88,N88<=Calculator!$N$8,Tabelle2!P88>=Calculator!$N$8),Calculator!$N$8,"") ->  | P88: 10.18 | Q88: =IF(AND(Calculator!$N$6=Tabelle2!$E88,Calculator!$N$7=Tabelle2!$F88,P88<=Calculator!$N$8,Tabelle2!R88>=Calculator!$N$8),Calculator!$N$8,"") ->  | R88: 10.92
E89: 75 | F89: 9 | G89: Total Input Power | H89: 63.58 | I89: =IF(I88="","",H89+(I88-H88)/(J88-H88)*(J89-H89)) ->  | J89: 67.51 | K89: =IF(K88="","",J89+(K88-J88)/(L88-J88)*(L89-J89)) ->  | L89: 71.5 | M89: =IF(M88="","",L89+(M88-L88)/(N88-L88)*(N89-L89)) ->  | N89: 75.58 | O89: =IF(O88="","",N89+(O88-N88)/(P88-N88)*(P89-N89)) ->  | P89: 79.76 | Q89: =IF(Q88="","",P89+(Q88-P88)/(R88-P88)*(R89-P89)) ->  | R89: 84.03
E90: 75 | F90: 10 | G90: FAD | H90: 7.7 | I90: =IF(AND(Calculator!$N$6=Tabelle2!$E90,Calculator!$N$7=Tabelle2!$F90,H90<=Calculator!$N$8,Tabelle2!J90>=Calculator!$N$8),Calculator!$N$8,"") ->  | J90: 8.13 | K90: =IF(AND(Calculator!$N$6=Tabelle2!$E90,Calculator!$N$7=Tabelle2!$F90,J90<=Calculator!$N$8,Tabelle2!L90>=Calculator!$N$8),Calculator!$N$8,"") ->  | L90: 8.57 | M90: =IF(AND(Calculator!$N$6=Tabelle2!$E90,Calculator!$N$7=Tabelle2!$F90,L90<=Calculator!$N$8,Tabelle2!N90>=Calculator!$N$8),Calculator!$N$8,"") ->  | N90: 9 | O90: =IF(AND(Calculator!$N$6=Tabelle2!$E90,Calculator!$N$7=Tabelle2!$F90,N90<=Calculator!$N$8,Tabelle2!P90>=Calculator!$N$8),Calculator!$N$8,"") ->  | P90: 9.44 | Q90: =IF(AND(Calculator!$N$6=Tabelle2!$E90,Calculator!$N$7=Tabelle2!$F90,P90<=Calculator!$N$8,Tabelle2!R90>=Calculator!$N$8),Calculator!$N$8,"") ->  | R90: 9.87
E91: 75 | F91: 10 | G91: Total Input Power | H91: 71.77 | I91: =IF(I90="","",H91+(I90-H90)/(J90-H90)*(J91-H91)) ->  | J91: 74.15 | K91: =IF(K90="","",J91+(K90-J90)/(L90-J90)*(L91-J91)) ->  | L91: 76.55 | M91: =IF(M90="","",L91+(M90-L90)/(N90-L90)*(N91-L91)) ->  | N91: 78.99 | O91: =IF(O90="","",N91+(O90-N90)/(P90-N90)*(P91-N91)) ->  | P91: 81.47 | Q91: =IF(Q90="","",P91+(Q90-P90)/(R90-P90)*(R91-P91)) ->  | R91: 83.97
